Workbook

Sheet Audit (hidden)
A1: User Name | B1: Computer Name | C1: Open Time | D1: Close Time | E1: Open WB Name | F1: Close WB Name
A2: Andrew | B2: ANDREW-PC | C2: 2014-01-08T12:25:43 | D2: 2014-01-08T19:34:23 | E2: C:\Users\Andrew\AppData\Local\Temp\ACCT202ProjectSolutionNEW-2.xlsm | F2: C:\Users\Andrew\Desktop\ACCT202ProjectSolutionNEW-2 Combined.xlsm
A3: tbergsma | B3: LTFACDDTBERGSMA | C3: 2014-01-09T12:17:21 | D3: 2014-01-09T14:15:10 | E3: D:\Users\tbergsma\Downloads\ACCT202ProjectSolutionNEW-2 Combined.xlsm | F3: D:\Users\tbergsma\Dropbox\ACCT202 PS W14\ACCT202ProjectSolutionNEW-2 Combined_Rev1.xlsm
A4: Tim | B4: PCTIMBASEMENT | C4: 2014-01-10T16:20:39 | D4: 2014-01-11T17:02:26 | E4: C:\Users\Tim\Dropbox\ACCT202 PS W14\ACCT202ProjectSolutionNEW-2 Combined_Rev1.xlsm | F4: C:\Users\Tim\Dropbox\ACCT202 PS W14\ACCT202_PracticeSet_W14_Solution.xlsm
A5: Tim | B5: PCTIMBASEMENT | C5: 2014-01-11T16:20:19 | D5: 2014-01-15T15:52:08 | E5: C:\Users\Tim\Dropbox\ACCT202 PS W14\ACCT202_PracticeSet_W14_Solution.xlsm | F5: d:\Users\tbergsma\Dropbox\ACCT202 PS W14\ACCT202_PracticeSet_W14_Solution.xlsm
A6: tbergsma | B6: LTFACDDTBERGSMA | C6: 2014-01-15T14:51:29 | D6: 2014-01-15T16:11:00 | E6: d:\Users\tbergsma\Dropbox\ACCT202 PS W14\ACCT202_PracticeSet_W14_Solution.xlsm | F6: d:\Users\tbergsma\Dropbox\ACCT202 PS W14\ACCT202_PracticeSet_W14_Solution.xlsm
A7: tbergsma | B7: LTFACDDTBERGSMA | C7: 2014-01-15T15:03:55 | D7: 2014-02-11T17:56:54 | E7: d:\Users\tbergsma\Dropbox\ACCT202 PS W14\ACCT202_PracticeSet_W14_Solution.xlsm | F7: d:\Users\tbergsma\Dropbox\ACCT202 PS W14\ACCT202_PracticeSet_W14_Solution.xlsm
A8: tbergsma | B8: LTFACDDTBERGSMA | C8: 2014-01-15T15:52:42 | D8: 2014-02-12T11:44:39 | E8: d:\Users\tbergsma\Dropbox\ACCT202 PS W14\ACCT202_PracticeSet_W14_Solution.xlsm | F8: d:\Users\tbergsma\Dropbox\ACCT202 PS W14\ACCT202_PracticeSet_W14_Solution.xlsm
A9: tbergsma | B9: LTFACDDTBERGSMA | C9: 2014-01-15T15:53:11 | D9: 2014-02-12T16:06:53 | E9: d:\Users\tbergsma\Dropbox\ACCT202 PS W14\ACCT202_PracticeSet_W14_Solution.xlsm | F9: d:\Users\tbergsma\Dropbox\ACCT202 PS W14\ACCT202_PracticeSet_W14_Solution.xlsm
A10: tbergsma | B10: LTFACDDTBERGSMA | C10: 2014-02-11T17:22:06 | D10: 2014-02-21T10:32:55 | E10: d:\Users\tbergsma\Dropbox\ACCT202 PS W14\ACCT202_PracticeSet_W14_Solution.xlsm | F10: C:\Users\Tim\Dropbox\ACCT202 PS W14\ACCT202_PracticeSet_W14_Solution.xlsm
A11: tbergsma | B11: LTFACDDTBERGSMA | C11: 2014-02-12T08:34:04 | D11: 2014-09-03T11:37:41 | E11: d:\Users\tbergsma\Dropbox\ACCT202 PS W14\ACCT202_PracticeSet_W14_Solution.xlsm | F11: https://d.docs.live.net/213637fca0d9e955/Documents/DU Teaching/ACCT202PS/ACCT202 PS F14/ACCT202_PracticeSet_F14_Solution.xlsm
A12: tbergsma | B12: LTFACDDTBERGSMA | C12: 2014-02-12T15:29:58 | D12: 2014-09-03T15:39:33 | E12: d:\Users\tbergsma\Dropbox\ACCT202 PS W14\ACCT202_PracticeSet_W14_Solution.xlsm | F12: d:\Users\tbergsma\OneDrive\Documents\DU Teaching\ACCT202PS\ACCT202 PS F14\ACCT202_PracticeSet_F14_Solution.xlsm
A13: Tim | B13: PCTIMBASEMENT | C13: 2014-02-21T09:54:51 | D13: 2014-09-04T13:42:03 | E13: C:\Users\Tim\Dropbox\ACCT202 PS W14\ACCT202_PracticeSet_W14_Solution.xlsm | F13: https://d.docs.live.net/213637fca0d9e955/Documents/DU Teaching/ACCT202PS/ACCT202 PS F14/ACCT202_PracticeSet_F14_StudentFile_DU.xlsm
A14: tbergsma | B14: LTFACDDTBERGSMA | C14: 2014-09-03T09:41:41 | D14: 2014-09-04T13:42:29 | E14: d:\Users\tbergsma\OneDrive\Documents\DU Teaching\ACCT202PS\ACCT202 PS W14\ACCT202_PracticeSet_W14_Solution.xlsm | F14: https://d.docs.live.net/213637fca0d9e955/Documents/DU Teaching/ACCT202PS/ACCT202 PS F14/ACCT202_PracticeSet_F14_StudentFile_DU.xlsm
A15: tbergsma | B15: LTFACDDTBERGSMA | C15: 2014-09-03T14:37:44 | D15: 2016-01-26T14:33:16 | E15: d:\Users\tbergsma\OneDrive\Documents\DU Teaching\ACCT202PS\ACCT202 PS F14\ACCT202_PracticeSet_F14_Solution.xlsm | F15: D:\Users\tbergsma\OneDrive\Documents\DU Teaching\ACCT202PS\ACCT202 PS F14\ACCT202_PracticeSet_F14_StudentFile_DU.xlsm
A16: tbergsma | B16: LTFACDDTBERGSMA | C16: 2014-09-04T12:38:43 | D16: 2016-01-26T14:45:00 | E16: d:\Users\tbergsma\OneDrive\Documents\DU Teaching\ACCT202PS\ACCT202 PS F14\ACCT202_PracticeSet_F14_Solution.xlsm | F16: D:\Users\tbergsma\OneDrive\Documents\DU Teaching\ACCT202PS\W16\ACCT202_PracticeSet_W16_StudentFile_DU.xlsm
A17: tbergsma | B17: LTFACDDTBERGSMA | C17: 2014-09-04T13:42:15 | E17: https://d.docs.live.net/213637fca0d9e955/Documents/DU Teaching/ACCT202PS/ACCT202 PS F14/ACCT202_PracticeSet_F14_StudentFile_DU.xlsm
A18: tbergsma | B18: LTFACDDTBERGSMA | C18: 2016-01-26T14:17:48 | E18: D:\Users\tbergsma\OneDrive\Documents\DU Teaching\ACCT202PS\ACCT202 PS F14\ACCT202_PracticeSet_F14_StudentFile_DU.xlsm
A19: tbergsma | B19: LTFACDDTBERGSMA | C19: 2016-01-26T14:44:05 | E19: d:\Users\tbergsma\OneDrive\Documents\DU Teaching\ACCT202PS\ACCT202 PS F14\ACCT202_PracticeSet_F14_StudentFile_DU.xlsm

Sheet Main Menu
O2: Davenport University
O3: ACCT202 Practice Set
O4: Winter: 2016
O5: Student File
A10: Student Name:
A11: CRN:
A12: Professor:

Sheet Instructions
A1: Company Background & Scenario
A2: The AC Speed Company is a well-established, publicly-held corporation, operating as a wholesaler in the auto parts industry. Specifically, AC Speed purchases auto parts from manufacturers and sells them to large business customers. Most purchases and sales are on account, with trade credit terms (specified below).
A3: You’re a Davenport University student pursuing a bachelor’s degree in business and employed at the AC Speed Company this semester as an intern. You’ve worked in various departments and on several projects so far, learning a lot about the company’s business operations. Management seems impressed with your enthusiasm and the quality of your work.
A4: The company’s accountant has just been called away for a family emergency and will likely be absent for a month or so. The General Manager asks you to take over the accountant’s regular duties on an interim basis. You’re nervous about doing so, but are confident that what you’ve learned in accounting class, plus your personal problem-solving skills, will make this a successful experience. What a great learning opportunity, not to mention an enhancement to your resume!
A5: Project Overview & Instructions
A6: A. Overview
A7: a. Part 1 is a financial accounting activity that requires you to record various business transactions during the month, close the accounting records at the end of the month, and prepare the financial statements. These tasks relate to the steps in the accounting cycle that you learned in your first accounting course.`
A8: b. Part 2 is an activity that requires you to analyze the company’s year-end financial statements to assist management in assessing the company’s position and making decisions about its future direction.
A9: c. This is an individual, not a team, project. While you may discuss this project with others, you must prepare and submit your own work. Refer to the academic integrity statement in the project workbook.
A10: d. Before starting work, review the entire project: all instructions, business transactions descriptions, workbook sections, check figures, due dates, and submission requirements.
A11: B. General Instructions
A12: a. The parts of this project, including specific business transactions and steps in the accounting cycle, must be completed in sequence. This is particularly important with business transactions relating to purchases and sales of inventory.
A13: b. You are encouraged to use your textbook’s table of contents (front) or index (back) to locate helpful references.
A14: c. These project instructions will not address every detail of every task. If you have questions, ask your instructor.
A15: d. Most of your work for this project will be accomplished in Excel. A basic skill level in this application is expected. That is, you should be able to such things as move around in a workbook, enter data in cells, use the sum function, compose basic formulas, and save your work.
A16: e. If rounding is required, round to the nearest cent. For example, $96.835 would be entered as $96.84.
A17: f. Use the check figures provided to check your work as you progress through the project. Investigate any discrepancies and correct them as you go along.
A18: g. Refer to the project rubric to determine how components of the project will be assessed.
A19: h. Appearance counts! Pay attention to the format, to spelling, and to other details of appearance. This reflects on management’s perception of you as a professional.
A20: C. Submission Requirements
A21: a. Final submission of all parts of this project must be in electronic (not paper) form. That is, you will submit your completed work via an assignment link in a Blackboard course site or via an email attachment. Follow your instructor’s directions.
A22: b. Save backup copies of your work. If you have multiple versions of the project, clearly label them for your own reference and to ensure that you submit the appropriate version to your instructor.
A23: c. You must read the academic integrity statement in the project workbook and enter your student ID number on the form to signify your agreement with and adherence to that statement. Final project submissions will not be accepted without this.
A24: d. Due dates for the parts of this project will be provided by your instructor in the course syllabus, in the Blackboard course site, or in a designated handout. Be sure to enter these on your personal calendar and plan your work on this project accordingly.
A25: D. Credit Terms & Inventory Accounting
A26: a. When AC Speed purchases merchandise from a supplier or vendor on account, they receive credit terms of 2/15, net 30.
A27: b. When AC Speed sells merchandise to a customer on account, they offer that customer credit terms of 2/20, net 30
A28: c. AC Speed accounts for the specific types of merchandise in their inventory with a set of subsidiary ledgers (inventory control cards). The balances in these subsidiary ledger records, in total, must equal the balance in the Merchandise Inventory account in the general ledger.
A29: d. AC Speed uses a perpetual inventory accounting system and a last-in, first-out (LIFO) inventory costing method.
A30: E. Financial Accounting Steps:
A31: a. Record each business transaction, in sequence by date, in the appropriate special journal or the general journal. Also, immediately record any transaction involving inventory, a customer, or a vendor in the appropriate subsidiary ledger record.
A32: b. At the end of the month, post each entry in the general journal to the general ledger.
A33: c. At the end of the month, total each column in each special journal and post that total to the general ledger. EXCEPT for entries in the “Other” columns, which must be posted individually to the general ledger.
A34: d. When posting is completed, bring the balance in each general ledger account up to date.
A35: e. When posting is completed, bring the balance in each subsidiary ledger account up to date.
A36: f. At this point in the closing process, the balances of all subsidiary ledger accounts would be totaled and that total compared to the balance of the corresponding control account in the general ledger. That is, the total of inventory control cards would be compared to the Merchandise Inventory balance; the customer subsidiary ledger total to the Accounts Receivable balance; and the vendor subsidiary ledger total to the Accounts Payable balance. Any discrepancies would be investigated and corrected. Given the limited scope of this project scenario, reconciliation between subsidiary ledgers and control accounts is not possible.
A37: g. List all general ledger account balances in the unadjusted trial balance columns of the worksheet. Use the sum function in Excel to total the debit and credit columns. These totals should be equal.
A38: h. Prepare the end-of-month adjusting entries. Record these entries in the general journal and post them to the general ledger. Also record the adjusting entries in the designated columns in the worksheet and total the debit and credit columns. These totals should be equal.
A39: i. Update general ledger account balances after posting adjusting journal entries.
A40: j. Complete the unadjusted trial balance columns on the worksheet. Use Excel formulas to carry balances from the unadjusted trial balance columns, adjusting as necessary by entries in the adjustments columns. Check your results against the balances recorded in the general ledger.
A41: k. Sort the dollars recorded in the adjusted trial balance columns into either the income statement or the balance sheet columns. Total these columns. The entry of net income should cause the debit and credit columns to equal one another.
A42: l. Use the income statement information on the worksheet to prepare a multi-step income statement in good form. Look at examples of this income statement format in your textbook.
A43: m. Prepare a statement of retained earnings in good form. Look at examples of this statement in your textbook. Remember that net income from your just-completed income statement is a necessary component of this statement.
A44: n. Use the balance sheet information on the worksheet to prepare a classified balance sheet. Remember that the ending retained earnings balance from the just-completed statement is a necessary component of the equity section of the balance sheet.
A45: o. Prepare the end-of-month closing entries. Record these entries in the general journal and post them to the general ledger. Update balances in the general ledger accounts.
A46: p. List the general ledger accounts that have balances other than zero on the post-closing trial balance. The totals of the debit column and the credit column should be equal.
A47: F. Part 2 of this project requires you to analyze the company’s year-end financial statements to assist the management of AC Speed in assessing the company’s financial position and making decisions about its future direction.
A48: a. Before beginning this part of the project, you will find it helpful to review Chapter 17 on financial statement analysis. Page 707, a summary of ratios, will be particularly useful.
A49: b. Tabs in the project workbook provide trial balance data for the current and two preceding years for AC Speed and a location to calculation a selection of ratios. Use the trial balance data and the formulas in Chapter 17 to compute the ratios listed for each of the three years. YOU MUST STRUCTURE YOUR RATIO CALCULATIONS AS FORMULAS AND LINKS TO APPROPRIATE CELLS ON THE TRIAL BALANCE TAB. You will lose points by simply typing the final ratio numbers or percentages.
A50: c. After you calculate the ratios, consider whether there is a trend over the three-year period. Also compare the ratios you calculated for AC Speed with those listed as industry averages. Review the information in Chapter 17 to help you determine what the ratios are telling you about various aspects of AC Speed’s business operations.
A51: d. Use Word to prepare a memo (minimum 500 words) to AC Speed’s general manager, addressing the three questions listed at the bottom of the ratios tab. This should be formatted as a business memo, not an APA paper. Be sure to include a brief introduction and conclusion in the memo. Each question should be addressed in one or two paragraphs in the body of the memo. Remember that the general manager will expect details/facts/ratios to support statements you may make about the status of the business. Your writing should be concise, clear, and readable, with a fairly formal tone (since it’s addressed to AC Speed’s general manager, who is likely to share it with other members of management). Your instructor will provide the due date and submission requirements for this part of the project.

Sheet Academic Integrity
C3: Project Academic Integrity Statement
B5: I understand that this is an individual, not a team, project; that I am expected to do my own work on the project. I may discuss project requirements in general terms with others, but I am not permitted to collaborate with anyone or copy anyone's work, manually or electronically, in full or in part.
B7: I also understand that I am not permitted to supply anyone with the results of my work or to provide them with any assistance that compromises another student's completion of the project through his or her own efforts.
B9: If I have any questions about these requirements, I will promptly ask my instructor for clarification
B11: I understand that any violation of this project academic integrity statement will lead, at minimum, to a failing grade for the project.
B13: By entering my name and student ID number below, I am attesting that I have read, understood, and will personally adhere to this project's academic integrity statement.
B15: Student Name:
B17: Student ID Number:
B19: Date:
H30: =TODAY() -> 2016-06-16

Sheet Transactions
A4: JUNE JOURNAL TRANSACTIONS
A6: June 1 | B6: =Data!AA2 -> Signed a 3 year 7.1% , $210000 note payable with First Bank.
A8: June 1 | B8: =Data!AA3 -> Purchased 3100 GPS units on credit from Navistar for $35.5 per unit.
A10: June 1 | B10: Issued 5,000 shares of common stock for $10 per share (Refer to General ledger for description of common stock).
A12: June 1 | B12: =Data!AA4 -> Sold 1983 DVD players on account to Toyota for $75 per unit, Invoice #5555
A14: June 2 | B14: =Data!AA6 -> Sold 3400 GPS units on account to Kia for $58 per unit, Invoice #5556.
A16: June 2 | B16: =Data!AA5 -> Purchased office supplies from Office Max on credit for $1150
A18: June 2 | B18: =Data!AA7 -> Sold 975 docking stations for $66 per unit and 1925 GPS units for $82 per unit on account to Nissan, Invoice #5557.
A20: June 3 | B20: The Board of Directors declared a cash dividend of $5 per share for shareholders of record on June 5th, payable on June 12th.
A22: June 4 | B22: =Data!AA9 -> Received payment from Toyota for May 11th sale.
A24: June 4 | B24: ='Data - ADJ JE'!E3 -> Rented part of the warehouse to a new tenant and received $5400 for three months rent starting in June
A26: June 5 | B26: Paid $2,100 to Michigan Utility Co. for utilities bill that was recorded in May as an Account Payable, Check #5278.
A28: June 7 | B28: =Data!AA10 -> Received and paid expense reports for travel and entertainment totaling $900 , Check #5279.
A30: June 8 | B30: =Data!AA11 -> Paid for office supplies purchased on June 2nd, Check #5280.
A32: June 11 | B32: =Data!AA12 -> Paid in full for the June 1 purchase from Navistar, Check #5281.
A34: June 11 | B34: =Data!AA13 -> Received a bill from the law firm of Larry, Moe & Curly for $5400 , payable upon receipt, for bond consulting fees, Check #5282.
A36: June 12 | B36: Paid the dividend that was declared on June 3, Check #5283.
A38: June 13 | B38: =Data!AA14 -> Took advantage of a special deal to purchase 3250 DVD players on account from JVC for $48 per unit.
A40: June 13 | B40: =Data!AA15 -> Purchased 850 GPS units on credit from Magellan for $33 per unit.
A42: June 15 | B42: =Data!AA18 -> Sold 2000 DVD players on credit to Ford Motor Co. for $89 per unit, Invoice 5558.
A44: June 15 | B44: =Data!AA16 -> Check # 5284 was issued for payroll: $14500 for salaried and $4750 for wages (wage expense)
A46: June 16 | B46: =Data!AA19 -> Purchased 1800 docking stations on credit from Samsung for $42 per unit.
A48: June 17 | B48: Issued a credit to Kia for the return of 350 defective units from the June 2nd sale. These units has a cost basis of $36 per unit.
A50: June 17 | B50: Returned the 350 defective units received from Kia to Navistar.
A52: June 18 | B52: =Data!AA20 -> Received payment in full from Toyota for the June 1st sale.
A54: June 20 | B54: While inspecting the June 13th purchase, it was discovered that the GPS units were programmed for South America instead of North America. AC Speed returned the entire order to Magellan.
A56: June 20 | B56: A bankruptcy judge disallowed AC Speed's claim for $5,000 due from General Motors. Management Decided to write off this accounts receivable.
A58: June 22 | B58: =Data!AA21 -> Sold 1650 docking stations on credit to Kia for 64.5 per unit, Invoice #5559.
A60: June 23 | B60: =Data!AA22 -> Paid $75000 of the $162500 owed to JVC from May 25, Check #5285.
A62: June 23 | B62: =Data!AA23 -> Received payment from Ford Motor Co. for $175000 of the $300000 owed from May 5.
A64: June 24 | B64: =Data!AA24 -> Purchased a $100 international phone card for one of the sales representative's upcoming European business trip, Check #5286.
A66: June 25 | B66: =Data!AA25 -> Paid in full for the purchase from JVC on June 13, Check #5287
A68: June 26 | B68: =Data!AA26 -> Purchased 1250 docking station from Samsung for $41 per unit paying in cash, Check #5288
A70: June 27 | B70: =Data!AA27 -> Sold 1500 docking stations on credit to Honda for $61 per unit, Invoice 5560.
A72: June 27 | B72: =Data!AA28 -> Hired and paid a consultant $75000 to devise a marketing plan. AC Speed's management felt this was necessary to develop brand awareness. Check #5289.
A74: June 28 | B74: =Data!AA29 -> AC Speed is behind in its mortgage payments to Bank of America. Paid a total of $10000 ( $2000 principal and $8000 interest), Check #5290.
A76: June 29 | B76: =Data!AA30 -> Received payment in full from Honda for the June 27th transaction.
A78: June 29 | B78: =Data!AA31 -> Paid in full for the purchase from Magellan on May 31st, Check #5291.
A80: June 29 | B80: =Data!AA32 -> Check # 5292 was issued for payroll: $14500 for salaried and $4750 for wages (wage expense)
A82: June 30 | B82: Paid the first month's principal payment of $15,000 on the note payable. In addition, paid one month's interest, Check #5293
A84: June 30 | B84: Issued bonds payable at face value for $450,000
A86: *All purchases on account terms of 2/15, n/30
A88: **All credit sales have terms of 2/20, n/30
A90: June Month-end Adjustments:
A92: ( A ) | B92: ='Data - ADJ JE'!C3 -> AC Speed has earned one month of the prepaid rent received from their tenant at the beginning of June.
A94: ( B ) | B94: ='Data - ADJ JE'!C6 -> The Company took a physical count of Office Supplies on June 30 and found the following to be on hand: Office Supplies - $2500
A96: ( C ) | B96: ='Data - ADJ JE'!C9 -> AC Speed estimates bad debt expense on a monthly basis rather than waiting until year-end. The company uses the allowance method. Based on recent industry estimates, AC Speed estimates that the allowance account should be 2% of accounts receivable.
A98: ( D ) | B98: ='Data - ADJ JE'!C11 -> The Company took a physical inventory count on June 30 and found the following inventory on hand: Merchandise Inventory - $120000
A101: ( E ) | B101: ='Data - ADJ JE'!C13 -> The Balance in the prepaid insurance account at the beginning of June represents 4 months of coverage. Record the amount of insurance for June.
A103: ( F ) | B103: Depreciation on the company's fixed assets for the month of June is as follows:
B104: ='Data - ADJ JE'!C16 -> 1. The furniture and equipment for the warehouse was purchased a few years ago for 10000. These assets have a 4-year life, an expected salvage value of 1000 and are depreciated using the straight-line method.
B105: ='Data - ADJ JE'!C17 -> 2. The furniture and equipment for the office was purchased last year for 8500. these assets have a 7 year life, an expected salvage value of 1500 and are depreicated using stright-line method.

Sheet Products
A1: Product Name | B1: Description
A2: GPS | B2: In vehicle GPS unit
A3: DVD Player | B3: In vehicle DVD player
A4: Docking Station | B4: Cell phone / Mobile Communications Docking Station

Sheet Chart of Accounts GL
A1: AC Speed Corporation
A2: Chart of Accounts - General Ledger
A4: BALANCE SHEET ACCOUNTS
A5: Assets
A6: Current Assets
A8: Acct # | B8: Account Name
A9: 100 | B9: Cash
A10: 102 | B10: Accounts Receivable
A11: 103 | B11: Allowance for Doubtful Accounts
A12: 104 | B12: Merchandise Inventory
A13: 105 | B13: Office Supplies
A14: 106 | B14: Prepaid Insurance
A15: Property, Plant and Equipment
A16: 140 | B16: Land
A17: 145 | B17: Building
A18: 146 | B18: Accumulated Depreciation - Building
A19: 151 | B19: Equipment & Furniture - Warehouse
A20: 152 | B20: Accumulated Depreciation - Equip & Furn. - Warehouse
A21: 153 | B21: Equipment & Furniture - Office
A22: 154 | B22: Accumulated Depreciation - Equip & Furn. - Office
A23: Liabilities
A24: Current Liabilities
A26: 201 | B26: Accounts Payable
A27: 202 | B27: Wages Payable
A28: 203 | B28: Interest Payable
A29: 204 | B29: Dividends Payable
A30: 205 | B30: Unearned Rent
A31: Long-Term Liabilities
A32: 250 | B32: Notes Payable
A33: 251 | B33: Bonds Payable
A34: 252 | B34: Mortgage (Warehouse) Payable
A35: Capital (Equity)
A36: 300 | B36: Common Stock, $1 Par, 100,000 Authorized; 60,000 shares Issued/Outstanding
A37: 301 | B37: Paid In Capital - Excess of Par
A38: 330 | B38: Retained Earnings
A39: 340 | B39: Treasury Stock
A40: INCOME STATEMENT ACCOUNTS
A41: Revenue
A42: 500 | B42: Sales
A43: 510 | B43: Sales Discounts
A44: 511 | B44: Sales Returns & Allowances
A45: Cost of Goods Sold
A46: 600 | B46: Cost of Goods Sold
A47: Operating Expenses
A48: 700 | B48: Wage Expense (hourly workers)
A49: 701 | B49: Salaries Expense (Exempt Staff)
A50: 702 | B50: Marketing Expense
A51: 703 | B51: Travel and Entertainment Expense
A52: 704 | B52: Bad Debt Expense
A53: 705 | B53: Property Tax Expense
A54: 706 | B54: Office Maintenance & Repair Expense
A55: 707 | B55: Legal Expenses
A56: 708 | B56: Insurance Expense
A57: 709 | B57: Utilities Expense
A58: 710 | B58: Office Supplies Expense
A59: 711 | B59: Telecommunications Expense
A60: 712 | B60: Depreciation Expense - Equip & Furniture - Warehouse
A61: 713 | B61: Depreciation Expense - Equip & Furniture - Office
A62: Other Income
A63: 800 | B63: Rent Income
A64: Other Expenses
A65: 900 | B65: Interest Expense
A66: Other
A67: 1000 | B67: Income Summary

Sheet Chart of Accounts AR Ledger
B1: ='Chart of Accounts GL'!A1 -> AC Speed Corporation
A2: Chart of Accounts - Accounts Receivable Ledger
B4: Account Name
B5: General Motors
B6: Ford Motor Co.
B7: Toyota
B8: Honda
B9: Kia
B10: Nissan

Sheet Chart of Accounts AP Ledger
A1: ='Chart of Accounts GL'!A1 -> AC Speed Corporation
A2: Chart of Accounts - Accounts Payable Ledger
B4: Account Name
B6: Garmin
B7: JVC
B8: Magellan
B9: Michigan Utility Company
B10: Motorola
B11: Navistar
B12: Office Max
B13: Samsung

Sheet Sales Journal
A1: ='Chart of Accounts GL'!A1 -> AC Speed Corporation
A2: Sales Journal
A4: Date | B4: Invoice No. | C4: A/R Account Debited | D4: Post Ref | E4: A/R - DR Sales - CR | F4: CGS - DR Inv - CR

Sheet Purchases Journal
A1: ='Chart of Accounts GL'!A1 -> AC Speed Corporation
A2: Purchases Journal
A4: Date | B4: Creditors Account Credited | C4: Other Account - Debited | D4: Post Ref | E4: A/P - CR | F4: Inventory - DR | G4: Office Supplies - DR | H4: Other - DR

Sheet Cash Receipts Journal
A1: ='Chart of Accounts GL'!A1 -> AC Speed Corporation
A2: Cash Receipts Journal
A4: Date | B4: Acct - CR Customer Acct Other Acct | C4: Post Ref | D4: Sales - CR | E4: A/R - CR | F4: Other - CR | G4: Sale Discount - DR | H4: Cash - DR | I4: CGS - DR Inv - CR

Sheet Cash Payments Journal
A1: ='Chart of Accounts GL'!A1 -> AC Speed Corporation
A2: Cash Payments Journal
A4: Date | B4: Check # | C4: Payee | D4: Account Debited | E4: Post Ref | F4: Cash - CR | G4: Inventory - CR | H4: Other - DR | I4: A/P - DR

Sheet General Journal
A1: ='Chart of Accounts GL'!A1 -> AC Speed Corporation
A2: General Journal
A4: Date | B4: Accounts | C4: Post Ref | D4: DEBIT | E4: CREDIT

Sheet General Journal ADJ
A1: ='Chart of Accounts GL'!A1 -> AC Speed Corporation
A2: General Journal
A4: Date | C4: Accounts | D4: Post Ref | E4: DEBIT | F4: CREDIT

Sheet General Journal CLOSING
A1: ='Chart of Accounts GL'!A1 -> AC Speed Corporation
A2: General Journal
A4: Date | B4: Accounts | C4: Post Ref | D4: DEBIT | E4: CREDIT

Sheet General Ledger
A1: Account: | B1: ='Chart of Accounts GL'!B9 -> Cash | F1: Account No. | G1: ='Chart of Accounts GL'!A9 -> 100
D2: Transaction | F2: Account Balance
A3: Date | B3: Item | C3: Post Ref | D3: DEBIT | E3: CREDIT | F3: DEBIT | G3: CREDIT
A4: 2010-05-31 | B4: Balance | F4: 75000
I11: 120000
A14: Account: | B14: ='Chart of Accounts GL'!B10 -> Accounts Receivable | F14: Account No. | G14: ='Chart of Accounts GL'!A10 -> 102
D15: Transaction | F15: Account Balance
A16: Date | B16: Item | C16: Post Ref | D16: DEBIT | E16: CREDIT | F16: DEBIT | G16: 4
A17: 2010-05-31 | B17: Balance | F17: ='AR Ledger'!E4+'AR Ledger'!E17+'AR Ledger'!E30 -> 490000
A27: Account: | B27: ='Chart of Accounts GL'!B11 -> Allowance for Doubtful Accounts | F27: Account No. | G27: ='Chart of Accounts GL'!A11 -> 103
D28: Transaction | F28: Account Balance
A29: Date | B29: Item | C29: Post Ref | D29: DEBIT | E29: CREDIT | F29: DEBIT | G29: CREDIT
A30: 2010-05-31 | B30: Balance | G30: 15000
A39: Account: | B39: ='Chart of Accounts GL'!B12 -> Merchandise Inventory | F39: Account No. | G39: ='Chart of Accounts GL'!A12 -> 104
D40: Transaction | F40: Account Balance
A41: Date | B41: Item | C41: Post Ref | D41: DEBIT | E41: CREDIT | F41: DEBIT | G41: CREDIT
A42: 2010-05-31 | B42: Balance | F42: ='Inventory Control'!M4+'Inventory Control'!M19+'Inventory Control'!M32 -> 334000
A53: Account: | B53: ='Chart of Accounts GL'!B13 -> Office Supplies | F53: Account No. | G53: ='Chart of Accounts GL'!A13 -> 105
D54: Transaction | F54: Account Balance
A55: Date | B55: Item | C55: Post Ref | D55: DEBIT | E55: CREDIT | F55: DEBIT | G55: CREDIT
A56: 2010-05-31 | B56: Balance | F56: 2000
A66: Account: | B66: ='Chart of Accounts GL'!B14 -> Prepaid Insurance | F66: Account No. | G66: ='Chart of Accounts GL'!A14 -> 106
D67: Transaction | F67: Account Balance
A68: Date | B68: Item | C68: Post Ref | D68: DEBIT | E68: CREDIT | F68: DEBIT | G68: CREDIT
A69: 2010-05-31 | F69: ='Data - ADJ JE'!I13 -> 14000
A79: Account: | B79: ='Chart of Accounts GL'!B16 -> Land | F79: Account No. | G79: ='Chart of Accounts GL'!A16 -> 140
D80: Transaction | F80: Account Balance
A81: Date | B81: Item | C81: Post Ref | D81: DEBIT | E81: CREDIT | F81: DEBIT | G81: CREDIT
A82: 2010-06-01 | B82: Balance Carried Forward | D82: 2000600 | F82: =D82 -> 2000600
A92: Account: | B92: ='Chart of Accounts GL'!B17 -> Building | F92: Account No. | G92: ='Chart of Accounts GL'!A17 -> 145
D93: Transaction | F93: Account Balance
A94: Date | B94: Item | C94: Post Ref | D94: DEBIT | E94: CREDIT | F94: DEBIT | G94: CREDIT
A95: 2010-06-01 | B95: Balance Carried Forward | D95: 1500000 | F95: =D95 -> 1500000
A105: Account: | B105: ='Chart of Accounts GL'!B18 -> Accumulated Depreciation - Building | F105: Account No. | G105: ='Chart of Accounts GL'!A18 -> 146
D106: Transaction | F106: Account Balance
A107: Date | B107: Item | C107: Post Ref | D107: DEBIT | E107: CREDIT | F107: DEBIT | G107: CREDIT
A108: 2010-05-31 | B108: Balance Carried Forward | E108: 1500000 | G108: =E108 -> 1500000
A118: Account: | B118: ='Chart of Accounts GL'!B19 -> Equipment & Furniture - Warehouse | F118: Account No. | G118: ='Chart of Accounts GL'!A19 -> 151
D119: Transaction | F119: Account Balance
A120: Date | B120: Item | C120: Post Ref | D120: DEBIT | E120: CREDIT | F120: DEBIT | G120: CREDIT
A121: 2010-05-31 | B121: Balance | F121: 10000
A131: Account: | B131: ='Chart of Accounts GL'!B20 -> Accumulated Depreciation - Equip & Furn. - Warehouse | F131: Account No. | G131: ='Chart of Accounts GL'!A20 -> 152
D132: Transaction | F132: Account Balance
A133: Date | B133: Item | C133: Post Ref | D133: DEBIT | E133: CREDIT | F133: DEBIT | G133: CREDIT
A134: 2010-05-31 | B134: Balance | G134: 1900
A144: Account: | B144: ='Chart of Accounts GL'!B21 -> Equipment & Furniture - Office | F144: Account No. | G144: ='Chart of Accounts GL'!A21 -> 153
D145: Transaction | F145: Account Balance
A146: Date | B146: Item | C146: Post Ref | D146: DEBIT | E146: CREDIT | F146: DEBIT | G146: CREDIT
A147: 2010-05-31 | B147: Balance | F147: 8500
A157: Account: | B157: ='Chart of Accounts GL'!B22 -> Accumulated Depreciation - Equip & Furn. - Office | F157: Account No. | G157: ='Chart of Accounts GL'!A22 -> 154
D158: Transaction | F158: Account Balance
A159: Date | B159: Item | C159: Post Ref | D159: DEBIT | E159: CREDIT | F159: DEBIT | G159: CREDIT
A160: 2010-05-31 | B160: Balance | G160: 1600
A170: Account: | B170: ='Chart of Accounts GL'!B26 -> Accounts Payable | F170: Account No. | G170: ='Chart of Accounts GL'!A26 -> 201
D171: Transaction | F171: Account Balance
A172: Date | B172: Item | C172: Post Ref | D172: DEBIT | E172: CREDIT | F172: DEBIT | G172: CREDIT
A173: 2010-05-31 | B173: Balance | G173: =157800+790800 -> 948600
A182: Account: | B182: ='Chart of Accounts GL'!B27 -> Wages Payable | F182: Account No. | G182: ='Chart of Accounts GL'!A27 -> 202
D183: Transaction | F183: Account Balance
A184: Date | B184: Item | C184: Post Ref | D184: DEBIT | E184: CREDIT | F184: DEBIT | G184: CREDIT
A195: Account: | B195: ='Chart of Accounts GL'!B28 -> Interest Payable | F195: Account No. | G195: ='Chart of Accounts GL'!A28 -> 203
D196: Transaction | F196: Account Balance
A197: Date | B197: Item | C197: Post Ref | D197: DEBIT | E197: CREDIT | F197: DEBIT | G197: CREDIT
A208: Account: | B208: ='Chart of Accounts GL'!B29 -> Dividends Payable | F208: Account No. | G208: ='Chart of Accounts GL'!A29 -> 204
D209: Transaction | F209: Account Balance
A210: Date | B210: Item | C210: Post Ref | D210: DEBIT | E210: CREDIT | F210: DEBIT | G210: CREDIT
A221: Account: | B221: ='Chart of Accounts GL'!B30 -> Unearned Rent | F221: Account No. | G221: ='Chart of Accounts GL'!A30 -> 205
D222: Transaction | F222: Account Balance
A223: Date | B223: Item | C223: Post Ref | D223: DEBIT | E223: CREDIT | F223: DEBIT | G223: CREDIT
A233: Account: | B233: ='Chart of Accounts GL'!B32 -> Notes Payable | F233: Account No. | G233: ='Chart of Accounts GL'!A32 -> 250
D234: Transaction | F234: Account Balance
A235: Date | B235: Item | C235: Post Ref | D235: DEBIT | E235: CREDIT | F235: DEBIT | G235: CREDIT
A236: 2010-06-01 | E236: ='Cash Receipts Journal'!F5 -> 0 | G236: =E236 -> 0
A244: Account: | B244: ='Chart of Accounts GL'!B33 -> Bonds Payable | F244: Account No. | G244: ='Chart of Accounts GL'!A33 -> 251
D245: Transaction | F245: Account Balance
A246: Date | B246: Item | C246: Post Ref | D246: DEBIT | E246: CREDIT | F246: DEBIT | G246: CREDIT
A247: 2010-06-01 | E247: ='Cash Receipts Journal'!F29 -> 0 | G247: =E247 -> 0
A256: Account: | B256: ='Chart of Accounts GL'!B34 -> Mortgage (Warehouse) Payable | F256: Account No. | G256: ='Chart of Accounts GL'!A34 -> 252
D257: Transaction | F257: Account Balance
A258: Date | B258: Item | C258: Post Ref | D258: DEBIT | E258: CREDIT | F258: DEBIT | G258: CREDIT
A259: 2010-06-01 | E259: ='Cash Receipts Journal'!F41 -> 0 | G259: 200000
A268: Account: | B268: ='Chart of Accounts GL'!B36 -> Common Stock, $1 Par, 100,000 Authorized; 60,000 shares Issued/Outstanding | F268: Account No. | G268: ='Chart of Accounts GL'!A36 -> 300
D269: Transaction | F269: Account Balance
A270: Date | B270: Item | C270: Post Ref | D270: DEBIT | E270: CREDIT | F270: DEBIT | G270: CREDIT
A271: 2010-05-31 | B271: Balance | G271: =60000*1 -> 60000
A281: Account: | B281: ='Chart of Accounts GL'!B37 -> Paid In Capital - Excess of Par | F281: Account No. | G281: ='Chart of Accounts GL'!A37 -> 301
D282: Transaction | F282: Account Balance
A283: Date | B283: Item | C283: Post Ref | D283: DEBIT | E283: CREDIT | F283: DEBIT | G283: CREDIT
A284: 2010-05-31 | G284: =(60000*25)-159000 -> 1341000
A293: Account: | B293: ='Chart of Accounts GL'!B38 -> Retained Earnings | F293: Account No. | G293: ='Chart of Accounts GL'!A38 -> 330
D294: Transaction | F294: Account Balance
A295: Date | B295: Item | C295: Post Ref | D295: DEBIT | E295: CREDIT | F295: DEBIT | G295: CREDIT
A296: 2010-05-31 | B296: Balance Brought Forward | G296: =389000+377000-400000 -> 366000
A305: Account: | B305: ='Chart of Accounts GL'!B39 -> Treasury Stock | F305: Account No. | G305: ='Chart of Accounts GL'!A39 -> 340
D306: Transaction | F306: Account Balance
A307: Date | B307: Item | C307: Post Ref | D307: DEBIT | E307: CREDIT | F307: DEBIT | G307: CREDIT
A317: Account: | B317: ='Chart of Accounts GL'!B42 -> Sales | F317: Account No. | G317: ='Chart of Accounts GL'!A42 -> 500
D318: Transaction | F318: Account Balance
A319: Date | B319: Item | C319: Post Ref | D319: DEBIT | E319: CREDIT | F319: DEBIT | G319: CREDIT
A330: Account: | B330: ='Chart of Accounts GL'!B43 -> Sales Discounts | F330: Account No. | G330: ='Chart of Accounts GL'!A43 -> 510
D331: Transaction | F331: Account Balance
A332: Date | B332: Item | C332: Post Ref | D332: DEBIT | E332: CREDIT | F332: DEBIT | G332: CREDIT
A343: Account: | B343: ='Chart of Accounts GL'!B44 -> Sales Returns & Allowances | F343: Account No. | G343: ='Chart of Accounts GL'!A44 -> 511
D344: Transaction | F344: Account Balance
A345: Date | B345: Item | C345: Post Ref | D345: DEBIT | E345: CREDIT | F345: DEBIT | G345: CREDIT
A356: Account: | B356: ='Chart of Accounts GL'!B46 -> Cost of Goods Sold | F356: Account No. | G356: ='Chart of Accounts GL'!A46 -> 600
D357: Transaction | F357: Account Balance
A358: Date | B358: Item | C358: Post Ref | D358: DEBIT | E358: CREDIT | F358: DEBIT | G358: CREDIT
A369: Account: | B369: ='Chart of Accounts GL'!B48 -> Wage Expense (hourly workers) | F369: Account No. | G369: ='Chart of Accounts GL'!A48 -> 700
D370: Transaction | F370: Account Balance
A371: Date | B371: Item | C371: Post Ref | D371: DEBIT | E371: CREDIT | F371: DEBIT | G371: CREDIT
A382: Account: | B382: ='Chart of Accounts GL'!B49 -> Salaries Expense (Exempt Staff) | F382: Account No. | G382: ='Chart of Accounts GL'!A49 -> 701
D383: Transaction | F383: Account Balance
A384: Date | B384: Item | C384: Post Ref | D384: DEBIT | E384: CREDIT | F384: DEBIT | G384: CREDIT
A395: Account: | B395: ='Chart of Accounts GL'!B50 -> Marketing Expense | F395: Account No. | G395: ='Chart of Accounts GL'!A50 -> 702
D396: Transaction | F396: Account Balance
A397: Date | B397: Item | C397: Post Ref | D397: DEBIT | E397: CREDIT | F397: DEBIT | G397: CREDIT
A408: Account: | B408: ='Chart of Accounts GL'!B51 -> Travel and Entertainment Expense | F408: Account No. | G408: ='Chart of Accounts GL'!A51 -> 703
D409: Transaction | F409: Account Balance
A410: Date | B410: Item | C410: Post Ref | D410: DEBIT | E410: CREDIT | F410: DEBIT | G410: CREDIT
A421: Account: | B421: ='Chart of Accounts GL'!B52 -> Bad Debt Expense | F421: Account No. | G421: ='Chart of Accounts GL'!A52 -> 704
D422: Transaction | F422: Account Balance
A423: Date | B423: Item | C423: Post Ref | D423: DEBIT | E423: CREDIT | F423: DEBIT | G423: CREDIT
A434: Account: | B434: ='Chart of Accounts GL'!B53 -> Property Tax Expense | F434: Account No. | G434: ='Chart of Accounts GL'!A53 -> 705
D435: Transaction | F435: Account Balance
A436: Date | B436: Item | C436: Post Ref | D436: DEBIT | E436: CREDIT | F436: DEBIT | G436: CREDIT
A447: Account: | B447: ='Chart of Accounts GL'!B54 -> Office Maintenance & Repair Expense | F447: Account No. | G447: ='Chart of Accounts GL'!A54 -> 706
D448: Transaction | F448: Account Balance
A449: Date | B449: Item | C449: Post Ref | D449: DEBIT | E449: CREDIT | F449: DEBIT | G449: CREDIT
A460: Account: | B460: ='Chart of Accounts GL'!B55 -> Legal Expenses | F460: Account No. | G460: ='Chart of Accounts GL'!A55 -> 707
D461: Transaction | F461: Account Balance
A462: Date | B462: Item | C462: Post Ref | D462: DEBIT | E462: CREDIT | F462: DEBIT | G462: CREDIT
A473: Account: | B473: ='Chart of Accounts GL'!B56 -> Insurance Expense | F473: Account No. | G473: ='Chart of Accounts GL'!A56 -> 708
D474: Transaction | F474: Account Balance
A475: Date | B475: Item | C475: Post Ref | D475: DEBIT | E475: CREDIT | F475: DEBIT | G475: CREDIT
A486: Account: | B486: ='Chart of Accounts GL'!B57 -> Utilities Expense | F486: Account No. | G486: ='Chart of Accounts GL'!A57 -> 709
D487: Transaction | F487: Account Balance
A488: Date | B488: Item | C488: Post Ref | D488: DEBIT | E488: CREDIT | F488: DEBIT | G488: CREDIT
A499: Account: | B499: ='Chart of Accounts GL'!B58 -> Office Supplies Expense | F499: Account No. | G499: ='Chart of Accounts GL'!A58 -> 710
D500: Transaction | F500: Account Balance
A501: Date | B501: Item | C501: Post Ref | D501: DEBIT | E501: CREDIT | F501: DEBIT | G501: CREDIT
A512: Account: | B512: ='Chart of Accounts GL'!B59 -> Telecommunications Expense | F512: Account No. | G512: ='Chart of Accounts GL'!A59 -> 711
D513: Transaction | F513: Account Balance
A514: Date | B514: Item | C514: Post Ref | D514: DEBIT | E514: CREDIT | F514: DEBIT | G514: CREDIT
A524: Account: | B524: ='Chart of Accounts GL'!B60 -> Depreciation Expense - Equip & Furniture - Warehouse | F524: Account No. | G524: ='Chart of Accounts GL'!A60 -> 712
D525: Transaction | F525: Account Balance
A526: Date | B526: Item | C526: Post Ref | D526: DEBIT | E526: CREDIT | F526: DEBIT | G526: CREDIT
A536: Account: | B536: ='Chart of Accounts GL'!B61 -> Depreciation Expense - Equip & Furniture - Office | F536: Account No. | G536: ='Chart of Accounts GL'!A61 -> 713
D537: Transaction | F537: Account Balance
A538: Date | B538: Item | C538: Post Ref | D538: DEBIT | E538: CREDIT | F538: DEBIT | G538: CREDIT
A548: Account: | B548: ='Chart of Accounts GL'!B63 -> Rent Income | F548: Account No. | G548: ='Chart of Accounts GL'!A63 -> 800
D549: Transaction | F549: Account Balance
A550: Date | B550: Item | C550: Post Ref | D550: DEBIT | E550: CREDIT | F550: DEBIT | G550: CREDIT
A560: Account: | B560: ='Chart of Accounts GL'!B65 -> Interest Expense | F560: Account No. | G560: ='Chart of Accounts GL'!A65 -> 900
D561: Transaction | F561: Account Balance
A562: Date | B562: Item | C562: Post Ref | D562: DEBIT | E562: CREDIT | F562: DEBIT | G562: CREDIT
A572: Account: | B572: ='Chart of Accounts GL'!B67 -> Income Summary | F572: Account No. | G572: ='Chart of Accounts GL'!A67 -> 1000
D573: Transaction | F573: Account Balance
A574: Date | B574: Item | C574: Post Ref | D574: DEBIT | E574: CREDIT | F574: DEBIT | G574: CREDIT

Sheet AR Ledger
A1: Account: | B1: ='Chart of Accounts AR Ledger'!B5 -> General Motors
C2: Transaction | E2: Account Balance
A3: Date | B3: Post Ref | C3: DEBIT | D3: CREDIT | E3: DEBIT | F3: CREDIT
A4: 2010-05-31 | E4: 5000
A5: 2011-06-20 | D5: ='General Journal'!E20 -> 0 | E5: =E4-D5 -> 5000
A14: Account: | B14: ='Chart of Accounts AR Ledger'!B6 -> Ford Motor Co.
C15: Transaction | E15: Account Balance
A16: Date | B16: Post Ref | C16: DEBIT | D16: CREDIT | E16: DEBIT | F16: CREDIT
A17: 2010-05-05 | C17: 300000 | E17: =C17 -> 300000
A27: Account: | B27: ='Chart of Accounts AR Ledger'!B7 -> Toyota
C28: Transaction | E28: Account Balance
A29: Date | B29: Post Ref | C29: DEBIT | D29: CREDIT | E29: DEBIT | F29: CREDIT
A30: 2010-05-11 | C30: =Data!G9 -> 185000 | E30: =C30 -> 185000
A40: Account: | B40: ='Chart of Accounts AR Ledger'!B8 -> Honda
C41: Transaction | E41: Account Balance
A42: Date | B42: Post Ref | C42: DEBIT | D42: CREDIT | E42: DEBIT | F42: CREDIT
A53: Account: | B53: ='Chart of Accounts AR Ledger'!B9 -> Kia
C54: Transaction | E54: Account Balance
A55: Date | B55: Post Ref | C55: DEBIT | D55: CREDIT | E55: DEBIT | F55: CREDIT
A66: Account: | B66: ='Chart of Accounts AR Ledger'!B10 -> Nissan
C67: Transaction | E67: Account Balance
A68: Date | B68: Post Ref | C68: DEBIT | D68: CREDIT | E68: DEBIT | F68: CREDIT

Sheet AP Ledger
A3: Account: | B3: ='Chart of Accounts AP Ledger'!B6 -> Garmin | E3: Account No.
C4: Transaction | E4: Account Balance
A5: Date | B5: Post Ref | C5: DEBIT | D5: CREDIT | E5: DEBIT | F5: CREDIT
A6: 2010-05-31 | F6: 18000
A16: Account: | B16: ='Chart of Accounts AP Ledger'!B7 -> JVC | E16: Account No.
C17: Transaction | E17: Account Balance
A18: Date | B18: Post Ref | C18: DEBIT | D18: CREDIT | E18: DEBIT | F18: CREDIT
A19: 2010-05-31 | D19: 162500 | F19: =D19 -> 162500
A29: Account: | B29: ='Chart of Accounts AP Ledger'!B8 -> Magellan | E29: Account No.
C30: Transaction | E30: Account Balance
A31: Date | B31: Post Ref | C31: DEBIT | D31: CREDIT | E31: DEBIT | F31: CREDIT
A32: 2010-05-31 | F32: 30000
A42: Account: | B42: ='Chart of Accounts AP Ledger'!B10 -> Motorola | E42: Account No.
C43: Transaction | E43: Account Balance
A44: Date | B44: Post Ref | C44: DEBIT | D44: CREDIT | E44: DEBIT | F44: CREDIT
A45: 2010-05-31 | F45: 58000
A55: Account: | B55: ='Chart of Accounts AP Ledger'!B11 -> Navistar | E55: Account No.
C56: Transaction | E56: Account Balance
A57: Date | B57: Post Ref | C57: DEBIT | D57: CREDIT | E57: DEBIT | F57: CREDIT
A58: 2010-05-31 | F58: 50000
A68: Account: | B68: ='Chart of Accounts AP Ledger'!B12 -> Office Max | E68: Account No.
C69: Transaction | E69: Account Balance
A70: Date | B70: Post Ref | C70: DEBIT | D70: CREDIT | E70: DEBIT | F70: CREDIT
A81: Account: | B81: ='Chart of Accounts AP Ledger'!B13 -> Samsung | E81: Account No.
C82: Transaction | E82: Account Balance
A83: Date | B83: Post Ref | C83: DEBIT | D83: CREDIT | E83: DEBIT | F83: CREDIT

Sheet Worksheet June 2013
C1: Unadjusted | G1: Adjusted | I1: Income | K1: Bal. Sheet
C2: Trial Balance | E2: Adjustments | G2: Trial Balance | I2: Statement | K2: Stmt. Own. Equity
A3: Acct. No. | B3: Account Title | C3: Dr. | D3: Cr. | E3: Dr. | F3: Cr. | G3: Dr. | H3: Cr. | I3: Dr. | J3: Cr. | K3: Dr. | L3: Cr.
A4: ='Chart of Accounts GL'!A9 -> 100 | B4: ='Chart of Accounts GL'!B9 -> Cash
A5: ='Chart of Accounts GL'!A10 -> 102 | B5: ='Chart of Accounts GL'!B10 -> Accounts Receivable
A6: ='Chart of Accounts GL'!A11 -> 103 | B6: ='Chart of Accounts GL'!B11 -> Allowance for Doubtful Accounts
A7: ='Chart of Accounts GL'!A12 -> 104 | B7: ='Chart of Accounts GL'!B12 -> Merchandise Inventory
A8: ='Chart of Accounts GL'!A13 -> 105 | B8: ='Chart of Accounts GL'!B13 -> Office Supplies
A9: ='Chart of Accounts GL'!A14 -> 106 | B9: ='Chart of Accounts GL'!B14 -> Prepaid Insurance
A10: ='Chart of Accounts GL'!A16 -> 140 | B10: ='Chart of Accounts GL'!B16 -> Land
A11: ='Chart of Accounts GL'!A17 -> 145 | B11: ='Chart of Accounts GL'!B17 -> Building
A12: ='Chart of Accounts GL'!A18 -> 146 | B12: ='Chart of Accounts GL'!B18 -> Accumulated Depreciation - Building
A13: ='Chart of Accounts GL'!A19 -> 151 | B13: ='Chart of Accounts GL'!B19 -> Equipment & Furniture - Warehouse
A14: ='Chart of Accounts GL'!A20 -> 152 | B14: ='Chart of Accounts GL'!B20 -> Accumulated Depreciation - Equip & Furn. - Warehouse
A15: ='Chart of Accounts GL'!A21 -> 153 | B15: ='Chart of Accounts GL'!B21 -> Equipment & Furniture - Office
A16: ='Chart of Accounts GL'!A22 -> 154 | B16: ='Chart of Accounts GL'!B22 -> Accumulated Depreciation - Equip & Furn. - Office
A17: ='Chart of Accounts GL'!A26 -> 201 | B17: ='Chart of Accounts GL'!B26 -> Accounts Payable
A18: ='Chart of Accounts GL'!A27 -> 202 | B18: ='Chart of Accounts GL'!B27 -> Wages Payable
A19: ='Chart of Accounts GL'!A28 -> 203 | B19: ='Chart of Accounts GL'!B28 -> Interest Payable
A20: ='Chart of Accounts GL'!A29 -> 204 | B20: ='Chart of Accounts GL'!B29 -> Dividends Payable
A21: ='Chart of Accounts GL'!A30 -> 205 | B21: ='Chart of Accounts GL'!B30 -> Unearned Rent
A22: ='Chart of Accounts GL'!A32 -> 250 | B22: ='Chart of Accounts GL'!B32 -> Notes Payable
A23: ='Chart of Accounts GL'!A33 -> 251 | B23: ='Chart of Accounts GL'!B33 -> Bonds Payable
A24: ='Chart of Accounts GL'!A34 -> 252 | B24: ='Chart of Accounts GL'!B34 -> Mortgage (Warehouse) Payable
A25: ='Chart of Accounts GL'!A36 -> 300 | B25: ='Chart of Accounts GL'!B36 -> Common Stock, $1 Par, 100,000 Authorized; 60,000 shares Issued/Outstanding
A26: ='Chart of Accounts GL'!A37 -> 301 | B26: ='Chart of Accounts GL'!B37 -> Paid In Capital - Excess of Par
A27: ='Chart of Accounts GL'!A38 -> 330 | B27: ='Chart of Accounts GL'!B38 -> Retained Earnings
A28: ='Chart of Accounts GL'!A39 -> 340 | B28: ='Chart of Accounts GL'!B39 -> Treasury Stock
A29: ='Chart of Accounts GL'!A42 -> 500 | B29: ='Chart of Accounts GL'!B42 -> Sales
A30: ='Chart of Accounts GL'!A43 -> 510 | B30: ='Chart of Accounts GL'!B43 -> Sales Discounts
A31: ='Chart of Accounts GL'!A44 -> 511 | B31: ='Chart of Accounts GL'!B44 -> Sales Returns & Allowances
A32: ='Chart of Accounts GL'!A46 -> 600 | B32: ='Chart of Accounts GL'!B46 -> Cost of Goods Sold
A33: ='Chart of Accounts GL'!A48 -> 700 | B33: ='Chart of Accounts GL'!B48 -> Wage Expense (hourly workers)
A34: ='Chart of Accounts GL'!A49 -> 701 | B34: ='Chart of Accounts GL'!B49 -> Salaries Expense (Exempt Staff)
A35: ='Chart of Accounts GL'!A50 -> 702 | B35: ='Chart of Accounts GL'!B50 -> Marketing Expense
A36: ='Chart of Accounts GL'!A51 -> 703 | B36: ='Chart of Accounts GL'!B51 -> Travel and Entertainment Expense
A37: ='Chart of Accounts GL'!A52 -> 704 | B37: ='Chart of Accounts GL'!B52 -> Bad Debt Expense
A38: ='Chart of Accounts GL'!A53 -> 705 | B38: ='Chart of Accounts GL'!B53 -> Property Tax Expense
A39: ='Chart of Accounts GL'!A54 -> 706 | B39: ='Chart of Accounts GL'!B54 -> Office Maintenance & Repair Expense
A40: ='Chart of Accounts GL'!A55 -> 707 | B40: ='Chart of Accounts GL'!B55 -> Legal Expenses
A41: ='Chart of Accounts GL'!A56 -> 708 | B41: ='Chart of Accounts GL'!B56 -> Insurance Expense
A42: ='Chart of Accounts GL'!A57 -> 709 | B42: ='Chart of Accounts GL'!B57 -> Utilities Expense
A43: ='Chart of Accounts GL'!A58 -> 710 | B43: ='Chart of Accounts GL'!B58 -> Office Supplies Expense
A44: ='Chart of Accounts GL'!A59 -> 711 | B44: ='Chart of Accounts GL'!B59 -> Telecommunications Expense
A45: ='Chart of Accounts GL'!A60 -> 712 | B45: ='Chart of Accounts GL'!B60 -> Depreciation Expense - Equip & Furniture - Warehouse
A46: ='Chart of Accounts GL'!A61 -> 713 | B46: ='Chart of Accounts GL'!B61 -> Depreciation Expense - Equip & Furniture - Office
A47: ='Chart of Accounts GL'!A63 -> 800 | B47: ='Chart of Accounts GL'!B63 -> Rent Income
A48: ='Chart of Accounts GL'!A65 -> 900 | B48: ='Chart of Accounts GL'!B65 -> Interest Expense
B49: Total
B50: Net Income (Loss)
B51: Total
B52: Total

Sheet IS June 2013
A1: ='Chart of Accounts GL'!A1 -> AC Speed Corporation
A2: Income Statement

Sheet Stmt RE June 2013
A1: ='Chart of Accounts GL'!A1 -> AC Speed Corporation
A2: Statement of Retained Earnings

Sheet BS June 2013
A1: ='Chart of Accounts GL'!A1 -> AC Speed Corporation
A2: Balance Sheet

Sheet Post Closing Trial Balance
A1: ='IS June 2013'!A1 -> AC Speed Corporation
A2: Post-closing Trial Balance
B4: DEBIT | C4: CREDIT
D30: =C30-B30 -> 0

Sheet Adjusted Trial Balances
B1: B/S Adjuster | C1: 1.12 | D1: 1.12 | E1: 1.06 | F1: 1.06 | G1: 1.1 | H1: 1.1 | I1: 1.09 | J1: 1.09
B2: I/S Adjuster | C2: 12 | D2: 12 | E2: 1.02 | F2: 1.02 | G2: 1.02 | H2: =G2 -> 1.02 | I2: 1.01 | J2: 1.01
C3: =Data!K37 -> 2012-12-31 | E3: =Data!L37 -> 2011-12-31 | G3: =Data!M37 -> 2010-12-31 | I3: =Data!N37 -> 2009-12-31 | K3: 2012-05-31
C4: Adjusted | E4: Adjusted | G4: Adjusted | I4: Adjusted | K4: Adjusted
C5: Trial Balance | E5: Trial Balance | G5: Trial Balance | I5: Trial Balance | K5: Trial Balance
A6: Acct. No. | B6: Account Title | C6: Dr. | D6: Cr. | E6: Dr. | F6: Cr. | G6: Dr. | H6: Cr. | I6: Dr. | J6: Cr. | K6: Dr. | L6: Cr.
A7: ='[1]Chart of Accounts GL'!A9 -> 100 | B7: ='Chart of Accounts GL'!B9 -> Cash | C7: =($C$1*K7)+210000+5000 -> 299000 | D7: =$D$1*L7 -> 0 | E7: =($E$1*C7) -> 316940 | F7: =$F$1*D7 -> 0 | G7: =G$1*E7 -> 348634 | H7: =H$1*F7 -> 0 | I7: =I$1*G7 -> 380011.06 | J7: =J$1*H7 -> 0 | K7: ='General Ledger'!F4 -> 75000
A8: ='[1]Chart of Accounts GL'!A10 -> 102 | B8: ='Chart of Accounts GL'!B10 -> Accounts Receivable | C8: =($C$1*K8)+250000+150000 -> 948800 | D8: =$D$1*L8 -> 0 | E8: =$E$1*(C8-150000) -> 846728 | F8: =$F$1*D8 -> 0 | G8: =(G$1*E8) -> 931400.8 | H8: =H$1*F8 -> 0 | I8: =((I$1*G8)) -> 1015226.872 | J8: =J$1*H8 -> 0 | K8: ='General Ledger'!F17 -> 490000 | M8: =J56 -> 0
A9: ='[1]Chart of Accounts GL'!A11 -> 103 | B9: ='Chart of Accounts GL'!B11 -> Allowance for Doubtful Accounts | C9: =$C$1*K9 -> 0 | D9: 16800 | E9: =$E$1*C9 -> 0 | F9: 17808 | G9: =G$1*E9 -> 0 | H9: =H$1*F9 -> 19588.8 | I9: =I$1*G9 -> 0 | J9: 21351.792 | L9: ='General Ledger'!G30 -> 15000
A10: ='[1]Chart of Accounts GL'!A12 -> 104 | B10: ='Chart of Accounts GL'!B12 -> Merchandise Inventory | C10: =($C$1*K10)+227776 -> 601856 | D10: 0 | E10: =($E$1*C10) -> 637967.36 | F10: 0 | G10: =(G$1*E10) -> 701764.096 | H10: 0 | I10: =(I$1*G10) -> 764922.8646 | J10: 0 | K10: ='General Ledger'!F42 -> 334000
A11: ='[1]Chart of Accounts GL'!A13 -> 105 | B11: ='Chart of Accounts GL'!B13 -> Office Supplies | C11: =($C$1*K11) -> 2240 | D11: 0 | E11: 2374.4 | F11: 0 | G11: =G$1*E11 -> 2611.84 | H11: 0 | I11: =I$1*G11 -> 2846.9056 | J11: 0 | K11: ='General Ledger'!F56 -> 2000
A12: ='[1]Chart of Accounts GL'!A14 -> 106 | B12: ='Chart of Accounts GL'!B14 -> Prepaid Insurance | C12: 15680 | D12: 0 | E12: 16620.8 | F12: 0 | G12: =$G$1*E12 -> 18282.88 | H12: 0 | I12: =$G$1*G12 -> 20111.168 | J12: 0 | K12: ='General Ledger'!F69 -> 14000
A13: ='[1]Chart of Accounts GL'!A16 -> 140 | B13: ='Chart of Accounts GL'!B16 -> Land | C13: =K13 -> 2000600 | D13: 0 | E13: =K13 -> 2000600 | F13: 0 | G13: =$K13 -> 2000600 | H13: 0 | I13: =$K13 -> 2000600 | J13: 0 | K13: ='General Ledger'!F82 -> 2000600
A14: ='[1]Chart of Accounts GL'!A17 -> 145 | B14: ='Chart of Accounts GL'!B17 -> Building | C14: =E14 -> 1500000 | E14: =G14 -> 1500000 | G14: =$K14 -> 1500000 | I14: =$K14 -> 1500000 | K14: ='General Ledger'!F95 -> 1500000
A15: ='[1]Chart of Accounts GL'!A18 -> 146 | B15: ='Chart of Accounts GL'!B18 -> Accumulated Depreciation - Building | D15: =F15 -> 1500000 | F15: =H15 -> 1500000 | H15: =L15 -> 1500000 | J15: 1500000 | L15: ='General Ledger'!G108 -> 1500000
A16: ='[1]Chart of Accounts GL'!A19 -> 151 | B16: ='Chart of Accounts GL'!B19 -> Equipment & Furniture - Warehouse | C16: 11200 | D16: 0 | E16: 11872 | F16: 0 | G16: =G$1*E16 -> 13059.2 | H16: 0 | I16: 14234.528 | J16: =J$1*H16 -> 0 | K16: ='General Ledger'!F121 -> 10000
A17: ='[1]Chart of Accounts GL'!A20 -> 152 | B17: ='Chart of Accounts GL'!B20 -> Accumulated Depreciation - Equip & Furn. - Warehouse | C17: 0 | D17: 2128 | E17: 0 | F17: 2255.68 | G17: 0 | H17: 2481.248 | I17: 0 | J17: =J$1*H17 -> 2704.56032 | L17: ='General Ledger'!G134 -> 1900
A18: ='[1]Chart of Accounts GL'!A21 -> 153 | B18: ='Chart of Accounts GL'!B21 -> Equipment & Furniture - Office | C18: 9520 | D18: 0 | E18: 10091.2 | F18: 0 | G18: 11100.32 | H18: 0 | I18: 12099.3488 | J18: =J$1*H18 -> 0 | K18: ='General Ledger'!F147 -> 8500
A19: ='[1]Chart of Accounts GL'!A22 -> 154 | B19: ='Chart of Accounts GL'!B22 -> Accumulated Depreciation - Equip & Furn. - Office | C19: 0 | D19: 1792 | E19: 0 | F19: 1899.52 | G19: 0 | H19: 2089.472 | I19: 0 | J19: =J$1*H19 -> 2277.52448 | L19: ='General Ledger'!G160 -> 1600
A20: ='[1]Chart of Accounts GL'!A26 -> 201 | B20: ='Chart of Accounts GL'!B26 -> Accounts Payable | C20: 0 | D20: =$D$1*L20-250000 -> 812432 | E20: 0 | F20: =$F$1*D20 -> 861177.92 | G20: 0 | H20: =F20*H1 -> 947295.712 | I20: 0 | J20: =H20*J1-54214 -> 978338.3261 | L20: ='General Ledger'!G173 -> 948600
A21: ='[1]Chart of Accounts GL'!A27 -> 202 | B21: ='Chart of Accounts GL'!B27 -> Wages Payable | C21: 0 | D21: 0 | E21: 0 | F21: 0 | G21: 0 | H21: 0 | I21: 0 | J21: 0 | L21: ='General Ledger'!G185 -> 0
A22: ='[1]Chart of Accounts GL'!A28 -> 203 | B22: ='Chart of Accounts GL'!B28 -> Interest Payable | C22: 0 | D22: 0 | E22: 0 | F22: 0 | G22: 0 | H22: 0 | I22: 0 | J22: 0 | L22: ='General Ledger'!G198 -> 0
A23: ='[1]Chart of Accounts GL'!A29 -> 204 | B23: ='Chart of Accounts GL'!B29 -> Dividends Payable | C23: 0 | D23: 0 | E23: 0 | F23: 0 | G23: 0 | H23: 0 | I23: 0 | J23: 0 | L23: 0
A24: ='[1]Chart of Accounts GL'!A30 -> 205 | B24: ='Chart of Accounts GL'!B30 -> Unearned Rent | C24: 0 | D24: 0 | E24: 0 | F24: 0 | G24: 0 | H24: 0 | I24: 0 | J24: 0 | L24: 0
A25: ='[1]Chart of Accounts GL'!A32 -> 250 | B25: ='Chart of Accounts GL'!B32 -> Notes Payable | C25: 0 | D25: 0 | E25: 0 | F25: 0 | G25: 0 | H25: 0 | I25: 0 | J25: 0 | L25: 0
A26: ='[1]Chart of Accounts GL'!A33 -> 251 | B26: ='Chart of Accounts GL'!B33 -> Bonds Payable | C26: 0 | D26: 0 | E26: 0 | F26: 0 | G26: 0 | H26: 0 | I26: 0 | J26: 0 | L26: 0
A27: ='[1]Chart of Accounts GL'!A34 -> 252 | B27: ='Chart of Accounts GL'!B34 -> Mortgage (Warehouse) Payable | C27: 0 | D27: =$D$1*L27-100000 -> 124000 | E27: 0 | F27: 131440 | G27: 0 | H27: =H$1*F27 -> 144584 | I27: 0 | J27: =J$1*H27 -> 157596.56 | L27: ='General Ledger'!G259 -> 200000
A28: ='[1]Chart of Accounts GL'!A36 -> 300 | B28: ='Chart of Accounts GL'!B36 -> Common Stock, $1 Par, 100,000 Authorized; 60,000 shares Issued/Outstanding | C28: 0 | D28: =Data!K38 -> 65000 | E28: =C28 -> 0 | F28: 65000 | G28: 0 | H28: 65000 | I28: =G28 -> 0 | J28: =H28 -> 65000 | L28: ='General Ledger'!G271 -> 60000
A29: ='[1]Chart of Accounts GL'!A37 -> 301 | B29: ='Chart of Accounts GL'!B37 -> Paid In Capital - Excess of Par | C29: 0 | D29: =Data!K39 -> 1545000 | E29: 0 | F29: 1545000 | G29: 0 | H29: 1545000 | I29: =G29 -> 0 | J29: =H29 -> 1545000 | L29: ='General Ledger'!G284 -> 1341000
A30: ='[1]Chart of Accounts GL'!A38 -> 330 | B30: ='Chart of Accounts GL'!B38 -> Retained Earnings | C30: 0 | D30: =Data!K40+5000 -> 1171744 | F30: =Data!L40+5300-0.36 -> 1071043.64 | H30: =Data!M40+5830-0.48 -> 961859.52 | J30: =Data!N40+6355+0.06 -> 1244834.06 | L30: ='General Ledger'!G296 -> 366000
A31: ='[1]Chart of Accounts GL'!A39 -> 340 | B31: ='Chart of Accounts GL'!B39 -> Treasury Stock | C31: 0 | D31: 0 | E31: =C31 -> 0 | F31: 0 | G31: 0 | H31: 0 | I31: 0 | J31: 0 | K31: 0 | L31: 0
A32: ='[1]Chart of Accounts GL'!A42 -> 500 | B32: ='Chart of Accounts GL'!B42 -> Sales | C32: =K32*$C$2 -> 0 | D32: =(L32*$D$2)+150000 -> 8850000 | E32: =C32*$E$2 -> 0 | F32: =(D32-150000)*$F$2 -> 8874000 | G32: =E32*G$2 -> 0 | H32: =(F32*H$2) -> 9051480 | I32: =G32*I$2 -> 0 | J32: =(H32*J$2) -> 9141994.8 | L32: =Data!D38 -> 725000
A33: ='[1]Chart of Accounts GL'!A43 -> 510 | B33: ='Chart of Accounts GL'!B43 -> Sales Discounts | C33: =K33*$C$2 -> 0 | D33: =L33*$D$2 -> 0 | E33: =C33*$E$2 -> 0 | F33: =D33*$F$2 -> 0 | G33: 0 | H33: 0 | I33: 0 | J33: 0 | K33: 0 | L33: 0
A34: ='[1]Chart of Accounts GL'!A44 -> 511 | B34: ='Chart of Accounts GL'!B44 -> Sales Returns & Allowances | C34: 0 | D34: 0 | E34: 0 | F34: 0 | G34: 0 | H34: 0 | I34: 0 | J34: 0 | K34: 0 | L34: 0
A35: ='[1]Chart of Accounts GL'!A46 -> 600 | B35: ='Chart of Accounts GL'!B46 -> Cost of Goods Sold | C35: =K35*$C$2 -> 7656000 | D35: 0 | E35: =C35*$E$2-147569 -> 7661551 | F35: 0 | G35: =E35*G$2-189034 -> 7625748.02 | H35: 0 | I35: =(G35*I$2)+150000 -> 7852005.5 | J35: 0 | K35: =L32*Data!D39 -> 638000
A36: ='[1]Chart of Accounts GL'!A48 -> 700 | B36: ='Chart of Accounts GL'!B48 -> Wage Expense (hourly workers) | C36: 120000 | D36: 0 | E36: 122400 | F36: 0 | G36: =E36*G$2 -> 124848 | H36: 0 | I36: 126096.48 | J36: 0 | K36: =Data!D40 -> 10000
A37: ='[1]Chart of Accounts GL'!A49 -> 701 | B37: ='Chart of Accounts GL'!B49 -> Salaries Expense (Exempt Staff) | C37: 360000 | D37: 0 | E37: 367200 | F37: 0 | G37: 374544 | H37: 0 | I37: 378289.44 | J37: 0 | K37: =Data!D41 -> 30000
A38: ='[1]Chart of Accounts GL'!A50 -> 702 | B38: ='Chart of Accounts GL'!B50 -> Marketing Expense | C38: 288000 | D38: 0 | E38: 293760 | F38: 0 | G38: 299635.2 | H38: 0 | I38: =G38*I$2 -> 302631.552 | J38: 0 | K38: =Data!D42 -> 24000
A39: ='[1]Chart of Accounts GL'!A51 -> 703 | B39: ='Chart of Accounts GL'!B51 -> Travel and Entertainment Expense | C39: 27600 | D39: 0 | E39: 28152 | F39: 0 | G39: 28715.04 | H39: 0 | I39: 29002.1904 | J39: 0 | K39: =Data!D43 -> 2300
A40: ='[1]Chart of Accounts GL'!A52 -> 704 | B40: ='Chart of Accounts GL'!B52 -> Bad Debt Expense | C40: 0 | D40: 0 | E40: 0 | F40: 0 | G40: 0 | H40: 0 | I40: 0 | J40: 0 | K40: 0 | L40: 0
A41: ='[1]Chart of Accounts GL'!A53 -> 705 | B41: ='Chart of Accounts GL'!B53 -> Property Tax Expense | C41: 0 | D41: 0 | E41: 0 | F41: 0 | G41: 0 | H41: 0 | I41: 0 | J41: 0 | K41: 0 | L41: 0
A42: ='[1]Chart of Accounts GL'!A54 -> 706 | B42: ='Chart of Accounts GL'!B54 -> Office Maintenance & Repair Expense | C42: 6000 | D42: 0 | E42: 6120 | F42: 0 | G42: 6242.4 | H42: 0 | I42: 6304.824 | J42: 0 | K42: =Data!D44 -> 500
A43: ='[1]Chart of Accounts GL'!A55 -> 707 | B43: ='Chart of Accounts GL'!B55 -> Legal Expenses | C43: =(C2*K43) -> 198600 | D43: 0 | E43: 202572 | F43: 0 | G43: =E43*G$2 -> 206623.44 | H43: 0 | I43: =G43*I$2 -> 208689.6744 | J43: 0 | K43: =Data!D45 -> 16550
A44: ='[1]Chart of Accounts GL'!A56 -> 708 | B44: ='Chart of Accounts GL'!B56 -> Insurance Expense | C44: 24000 | D44: 0 | E44: 24480 | F44: 0 | G44: =E44*G$2 -> 24969.6 | H44: 0 | I44: =G44*I$2 -> 25219.296 | J44: 0 | K44: =Data!D46 -> 2000
A45: ='[1]Chart of Accounts GL'!A57 -> 709 | B45: ='Chart of Accounts GL'!B57 -> Utilities Expense | C45: 12000 | D45: 0 | E45: 12240 | F45: 0 | G45: 12484.8 | H45: 0 | I45: 12609.648 | J45: 0 | K45: =Data!D47 -> 1000
A46: ='[1]Chart of Accounts GL'!A58 -> 710 | B46: ='Chart of Accounts GL'!B58 -> Office Supplies Expense | C46: 3480 | D46: 0 | E46: 3549.6 | F46: 0 | G46: 3620.592 | H46: 0 | I46: 3656.79792 | J46: 0 | K46: =Data!D48 -> 290
A47: ='[1]Chart of Accounts GL'!A59 -> 711 | B47: ='Chart of Accounts GL'!B59 -> Telecommunications Expense | C47: 660 | D47: 0 | E47: 673.2 | F47: 0 | G47: 686.664 | H47: 0 | I47: 693.53064 | J47: 0 | K47: =Data!D49 -> 55
A48: ='[1]Chart of Accounts GL'!A60 -> 712 | B48: ='Chart of Accounts GL'!B60 -> Depreciation Expense - Equip & Furniture - Warehouse | C48: 1980 | D48: 0 | E48: 2019.6 | F48: 0 | G48: 2059.992 | H48: 0 | I48: 2080.59192 | J48: 0 | K48: =Data!D50 -> 165
A49: ='[1]Chart of Accounts GL'!A61 -> 713 | B49: ='Chart of Accounts GL'!B61 -> Depreciation Expense - Equip & Furniture - Office | C49: 1680 | D49: 0 | E49: 1713.6 | F49: 0 | G49: 1747.872 | H49: 0 | I49: 1765.35072 | J49: 0 | K49: =Data!D51 -> 140
A50: ='[1]Chart of Accounts GL'!A63 -> 800 | B50: ='Chart of Accounts GL'!B63 -> Rent Income | C50: 0 | D50: 0 | E50: 0 | F50: 0 | G50: 0 | H50: 0 | I50: 0 | J50: 0 | K50: 0 | L50: 0
A51: ='[1]Chart of Accounts GL'!A65 -> 900 | B51: ='Chart of Accounts GL'!B65 -> Interest Expense | C51: 0 | D51: 0 | E51: 0 | F51: 0 | G51: 0 | H51: 0 | I51: 0 | J51: 0 | K51: 0 | L51: 0
B53: Total | C53: =SUM(C7:C51) -> 14088896 | D53: =SUM(D7:D51) -> 14088896 | E53: 14069624.76 | F53: 14069624.76 | G53: 14239378.76 | H53: 14239378.75 | I53: =SUM(I7:I51) -> 14659097.62 | J53: =SUM(J7:J51) -> 14659097.62 | K53: 5159100 | L53: 5159100
A55: Variance | C55: =C53-D53 -> 0 | E55: =E53-F53 -> 0 | G55: =G53-H53 -> 0.004000000656 | I55: =I53-J53 -> 0.0003599990159 | K55: =K53-L53 -> 0

Sheet IS Comparative
A1: ='[1]Chart of Accounts GL'!A1 -> AC Speed Corporation
A2: Income Statement
B3: ='Adjusted Trial Balances'!C3 -> 2012-12-31 | D3: ='Adjusted Trial Balances'!E3 -> 2011-12-31 | F3: ='Adjusted Trial Balances'!G3 -> 2010-12-31 | H3: ='Adjusted Trial Balances'!I3 -> 2009-12-31 | J3: ='Adjusted Trial Balances'!K3 -> 2012-05-31
A38: Common Dividends | B38: 19200 | D38: 16130 | F38: 15000 | H38: 1600
A39: Weighted Average Common Shares | B39: 65000 | D39: 65000 | F39: 65000 | H39: 62500
A40: Market Price per Common Share | B40: 35 | D40: 34 | F40: 31 | H40: 34

Sheet BS Comparative
A1: ='[1]Chart of Accounts GL'!A1 -> AC Speed Corporation
A2: Balance Sheet
B3: ='IS Comparative'!B3 -> 2012-12-31 | D3: ='IS Comparative'!D3 -> 2011-12-31 | F3: ='IS Comparative'!F3 -> 2010-12-31 | H3: ='IS Comparative'!H3 -> 2009-12-31 | J3: ='IS Comparative'!J3 -> 2012-05-31

Sheet Ratios Historical
B1: ='BS Comparative'!B3 -> 2012-12-31 | D1: ='BS Comparative'!D3 -> 2011-12-31 | F1: ='BS Comparative'!F3 -> 2010-12-31 | H1: INDUSTRY
A2: Liquidity
A3: Current Ratio (One decimal place) | H3: 2.2
A7: Acid Test Ratio (One decimal place) | H7: 1.6
A13: Receivables Turnover (One decimal place) | H13: 10
A19: Inventory Turnover (One decimal place) | H19: 9.5
A24: Profitability
A26: Profit Margin (% with two decimal places) | H26: 0.035
A30: Asset Turnover (two decimal places) | H30: 1.9
A36: Return on Assets (% one decimal place) | H36: 0.105
A40: Return on Common Shareholders' Equity
A41: (One decimal place) | H41: 0.183
A48: Earnings per Share (EPS) (Two decimal places) | H48: 3.05
A53: Price-Earnings (P/E ) Ratio (Two decimal places) | H53: 14.8
A57: Payout Ratio (% One decimal place) | H57: 0.15
A62: Solvency Ratios
A64: Debt to Total Assets Ratio (% One decimal place) | H64: 0.422
B68: Dec. 31, 2012 | D68: Dec. 31, 2011 | F68: Dec. 31, 2010
A69: Common Dividends | B69: 19200 | D69: 16130 | F69: 15000
A70: Weighted Average Common Shares | B70: 65000 | D70: 65000 | F70: 63750
A71: Market Price per Share | B71: 35 | D71: 34 | F71: 31
A75: INSTRUCTIONS:
A76: Calculate all of the ratios listed above.
A77: Evaluate the company's performance trend relative to liquidity, profitability and solvency.
A78: Evaluate the company's performance relative to liquidity, profitability and solvency for their industry for the three years.
A79: Relate to the company management in which areas they are performing well and in which areas they need improvement.

Sheet Inventory Control
A1: Shoe: | B1: =Products!A2 -> GPS
B2: Beginning Inventory (BI) | E2: Purchases | H2: Sales | K2: Ending Inventory (EI)
A3: Date | B3: BI Units | C3: BI $/Unit | D3: BI $ | E3: Purch Units | F3: Purch $/Unit | G3: Purch $ | H3: Sale Units (CGS) | I3: Sale $/Unit (CGS) | J3: Sale $ (CGS) | K3: EI Units | L3: EI $/Unit | M3: EI $
A4: 2010-06-01 | B4: 3300 | C4: 35 | D4: =B4*C4 -> 115500 | G4: =E4*F4 -> 0 | J4: =H4*I4 -> 0 | M4: =D4+G4-J4 -> 115500
A5: =Data!A3 -> 2013-06-01
A6: =Data!A7 -> 2013-06-02
A9: =Data!A15 -> 2013-06-13
A10: 2010-06-17
A11: 2011-06-17
A12: 2011-06-20
A13: 2011-06-27
A16: Shoe: | B16: =Products!A3 -> DVD Player
B17: Beginning Inventory (BI) | E17: Purchases | H17: Sales | K17: Ending Inventory (EI)
A18: Date | B18: BI Units | C18: BI $/Unit | D18: BI $ | E18: Purch Units | F18: Purch $/Unit | G18: Purch $ | H18: Sale Units (CGS) | I18: Sale $/Unit (CGS) | J18: Sale $ (CGS) | K18: EI Units | L18: EI $/Unit | M18: EI $
A19: 2010-06-01 | B19: 2500 | C19: 65 | D19: =B19*C19 -> 162500 | G19: =E19*F19 -> 0 | J19: =H19*I19 -> 0 | M19: =D19 -> 162500
A20: =Data!A4 -> 2013-06-01
A21: =Data!A14 -> 2013-06-13
A22: =Data!A18 -> 2013-06-15
A29: Shoe: | B29: =Products!A4 -> Docking Station
B30: Beginning Inventory (BI) | E30: Purchases | H30: Sales | K30: Ending Inventory (EI)
A31: Date | B31: BI Units | C31: BI $/Unit | D31: BI $ | E31: Purch Units | F31: Purch $/Unit | G31: Purch $ | H31: Sale Units (CGS) | I31: Sale $/Unit (CGS) | J31: Sale $ (CGS) | K31: EI Units | L31: EI $/Unit | M31: EI $
A32: 2010-06-01 | B32: 1400 | C32: 40 | D32: =B32*C32 -> 56000 | J32: =H32*I32 -> 0 | M32: =D32+G32-J32 -> 56000
A33: =Data!A7 -> 2013-06-02
A34: =Data!A19 -> 2013-06-16
A35: =Data!A21 -> 2013-06-22
A36: =Data!A26 -> 2013-06-26
A37: =Data!A27 -> 2013-06-27
A38: =Data!A27 -> 2013-06-27

Sheet Data (hidden)
A1: Date | B1: Type of Tran. | C1: Journal | D1: Other/ACT | E1: Units | F1: $ per Unit | G1: Total $ | H1: Discount | I1: Discount % | J1: Balance Owing | K1: Amt of Discount | L1: Amt of Balance | M1: L/T Payable | N1: Interest | O1: Duration (years) | P1: Interest Paid | Q1: Balance Paid | R1: Concatenate1 | S1: Concatenate2 | T1: Concatenate3 | U1: Concatenate4 | V1: Concatenate5 | W1: Concatenate6 | X1: Concatenate7 | Y1: Concatenate8 | Z1: Concatenate9 | AA1: Concatenate10
A2: 2013-06-01 | B2: Financing | C2: Cash Receipts Journal | D2: Note Payable | M2: 210000 | N2: 0.071 | O2: 3 | R2: Signed a | S2: =Table1[[#This Row],[Duration (years)]] -> 3 | T2: year | U2: =Table1[[#This Row],[Interest]]*100 -> 7.1 | V2: =Table1[[#This Row],[L/T Payable]] -> 210000 | W2: note payable with First Bank. | AA2: =CONCATENATE(Table1[[#This Row],[Concatenate1]]," ",Table1[[#This Row],[Concatenate2]]," ",Table1[[#This Row],[Concatenate3]]," ",Table1[[#This Row],[Concatenate4]],"% , $",Table1[[#This Row],[Concatenate5]]," ",Table1[[#This Row],[Concatenate6]]) -> Signed a 3 year 7.1% , $210000 note payable with First Bank.
A3: 2013-06-01 | B3: Purchase | C3: Purchases Journal | E3: 3100 | F3: 35.5 | G3: =E3*F3 -> 110050 | H3: Yes | I3: 0.02 | J3: =G3 -> 110050 | R3: Purchased | S3: =Table1[[#This Row],[Units]] -> 3100 | T3: GPS units on credit from Navistar for $ | U3: =Table1[[#This Row],[$ per Unit]] -> 35.5 | V3: per unit. | AA3: =CONCATENATE(Table1[[#This Row],[Concatenate1]]," ",Table1[[#This Row],[Concatenate2]]," ",Table1[[#This Row],[Concatenate3]],"",Table1[[#This Row],[Concatenate4]]," ",Table1[[#This Row],[Concatenate5]]," ",Table1[[#This Row],[Concatenate6]]) -> Purchased 3100 GPS units on credit from Navistar for $35.5 per unit.
A4: 2013-06-01 | B4: Sale | C4: Sales Journal | E4: 1983 | F4: 75 | G4: =E4*F4 -> 148725 | H4: Yes | I4: 0.02 | J4: =Table1[[#This Row],[Total $]] -> 148725 | R4: Sold | S4: =Table1[[#This Row],[Units]] -> 1983 | T4: DVD players on account to Toyota for | U4: =Table1[[#This Row],[$ per Unit]] -> 75 | V4: per unit, Invoice #5555 | AA4: =CONCATENATE(Table1[[#This Row],[Concatenate1]]," ",Table1[[#This Row],[Concatenate2]]," ",Table1[[#This Row],[Concatenate3]]," $",Table1[[#This Row],[Concatenate4]]," ",Table1[[#This Row],[Concatenate5]]," ",Table1[[#This Row],[Concatenate6]]) -> Sold 1983 DVD players on account to Toyota for $75 per unit, Invoice #5555
A5: 2013-06-02 | B5: Purchase | C5: Purchases Journal | G5: 1150 | H5: Yes | I5: 0.02 | J5: ='General Ledger'!F56 -> 2000 | R5: Purchased office supplies from Office Max on credit for $ | S5: =Table1[[#This Row],[Total $]] -> 1150 | AA5: =CONCATENATE(Table1[[#This Row],[Concatenate1]],"",Table1[[#This Row],[Concatenate2]]," ",Table1[[#This Row],[Concatenate3]]," ",Table1[[#This Row],[Concatenate4]]," ",Table1[[#This Row],[Concatenate5]]," ",Table1[[#This Row],[Concatenate6]]) -> Purchased office supplies from Office Max on credit for $1150
A6: 2013-06-02 | B6: Sale | C6: Sales Journal | E6: 3400 | F6: 58 | G6: =E6*F6 -> 197200 | H6: Yes | I6: 0.02 | J6: =Table1[[#This Row],[Total $]] -> 197200 | R6: Sold | S6: =Table1[[#This Row],[Units]] -> 3400 | T6: GPS units on account to Kia for | U6: =Table1[[#This Row],[$ per Unit]] -> 58 | V6: per unit, Invoice #5556. | AA6: =CONCATENATE(Table1[[#This Row],[Concatenate1]]," ",Table1[[#This Row],[Concatenate2]]," ",Table1[[#This Row],[Concatenate3]]," $",Table1[[#This Row],[Concatenate4]]," ",Table1[[#This Row],[Concatenate5]]," ",Table1[[#This Row],[Concatenate6]]) -> Sold 3400 GPS units on account to Kia for $58 per unit, Invoice #5556.
A7: 2013-06-02 | B7: Sale | C7: Sales Journal | E7: 975 | F7: 66 | G7: =E7*F7 -> 64350 | H7: Yes | I7: 0.02 | R7: Sold | S7: =Table1[[#This Row],[Units]] -> 975 | T7: docking stations for | U7: =Table1[[#This Row],[$ per Unit]] -> 66 | V7: per unit and | W7: =E8 -> 1925 | X7: GPS units for | Y7: =F8 -> 82 | Z7: per unit on account to Nissan, Invoice #5557. | AA7: =CONCATENATE(Table1[[#This Row],[Concatenate1]]," ",Table1[[#This Row],[Concatenate2]]," ",Table1[[#This Row],[Concatenate3]]," $",Table1[[#This Row],[Concatenate4]]," ",Table1[[#This Row],[Concatenate5]]," ",Table1[[#This Row],[Concatenate6]]," ",Table1[[#This Row],[Concatenate7]]," $",Table1[[#This Row],[Concatenate8]]," ",Table1[[#This Row],[Concatenate9]]) -> Sold 975 docking stations for $66 per unit and 1925 GPS units for $82 per unit on account to Nissan, Invoice #5557.
A8: 2013-06-02 | B8: Sale | C8: Sales Journal | E8: 1925 | F8: 82 | G8: =E8*F8 -> 157850 | H8: Yes | I8: 0.02
A9: 2013-06-04 | B9: Cash Receipt | C9: Cash Receipts Journal | G9: 185000 | H9: No | I9: 0.02 | J9: 0 | K9: 0 | L9: 0 | R9: Received payment from Toyota for May 11th sale. | AA9: =CONCATENATE(Table1[[#This Row],[Concatenate1]]," ",Table1[[#This Row],[Concatenate2]]," ",Table1[[#This Row],[Concatenate3]]," ",Table1[[#This Row],[Concatenate4]]," ",Table1[[#This Row],[Concatenate5]]," ",Table1[[#This Row],[Concatenate6]]," ",Table1[[#This Row],[Concatenate7]]," ",Table1[[#This Row],[Concatenate8]]," ",Table1[[#This Row],[Concatenate9]]) -> Received payment from Toyota for May 11th sale.
A10: 2013-06-07 | B10: Cash Payments | C10: Cash Payments Journal | D10: Travel & Ent. Exp. | G10: 900 | H10: No | J10: 0 | K10: 0 | L10: 0 | R10: Received and paid expense reports for travel and entertainment totaling | S10: =Table1[[#This Row],[Total $]] -> 900 | T10: , Check #5279. | AA10: =CONCATENATE(Table1[[#This Row],[Concatenate1]]," $",Table1[[#This Row],[Concatenate2]]," ",Table1[[#This Row],[Concatenate3]]," ",Table1[[#This Row],[Concatenate4]]," ",Table1[[#This Row],[Concatenate5]]," ",Table1[[#This Row],[Concatenate6]]," ",Table1[[#This Row],[Concatenate7]]," ",Table1[[#This Row],[Concatenate8]]," ",Table1[[#This Row],[Concatenate9]]) -> Received and paid expense reports for travel and entertainment totaling $900 , Check #5279.
A11: 2013-06-08 | B11: Cash Payments | C11: Cash Payments Journal | G11: 1200 | H11: Yes | I11: 0.02 | J11: =G11 -> 1200 | K11: =J11*I11 -> 24 | L11: =J11-K11 -> 1176 | R11: Paid for office supplies purchased on June 2nd, Check #5280. | AA11: =CONCATENATE(Table1[[#This Row],[Concatenate1]]," ",Table1[[#This Row],[Concatenate2]]," ",Table1[[#This Row],[Concatenate3]]," ",Table1[[#This Row],[Concatenate4]]," ",Table1[[#This Row],[Concatenate5]]," ",Table1[[#This Row],[Concatenate6]]," ",Table1[[#This Row],[Concatenate7]]," ",Table1[[#This Row],[Concatenate8]]," ",Table1[[#This Row],[Concatenate9]]) -> Paid for office supplies purchased on June 2nd, Check #5280.
A12: 2013-06-11 | B12: Cash Payment | C12: Cash Payments Journal | G12: =L12 -> 107849 | H12: Yes | I12: 0.02 | J12: =G3 -> 110050 | K12: =J12*I3 -> 2201 | L12: =J12-K12 -> 107849 | R12: Paid in full for the June 1 purchase from Navistar, Check #5281. | AA12: =CONCATENATE(Table1[[#This Row],[Concatenate1]]," ",Table1[[#This Row],[Concatenate2]]," ",Table1[[#This Row],[Concatenate3]]," ",Table1[[#This Row],[Concatenate4]]," ",Table1[[#This Row],[Concatenate5]]," ",Table1[[#This Row],[Concatenate6]]," ",Table1[[#This Row],[Concatenate7]]," ",Table1[[#This Row],[Concatenate8]]," ",Table1[[#This Row],[Concatenate9]]) -> Paid in full for the June 1 purchase from Navistar, Check #5281.
A13: 2013-06-11 | B13: Cash Payment | C13: Cash Payments Journal | D13: Legal Expenses | G13: 5400 | H13: no | J13: 0 | K13: 0 | L13: 0 | R13: Received a bill from the law firm of Larry, Moe & Curly for | S13: =Table1[[#This Row],[Total $]] -> 5400 | T13: , payable upon receipt, for bond consulting fees, Check #5282. | AA13: =CONCATENATE(Table1[[#This Row],[Concatenate1]]," $",Table1[[#This Row],[Concatenate2]]," ",Table1[[#This Row],[Concatenate3]]," ",Table1[[#This Row],[Concatenate4]]," ",Table1[[#This Row],[Concatenate5]]," ",Table1[[#This Row],[Concatenate6]]," ",Table1[[#This Row],[Concatenate7]]," ",Table1[[#This Row],[Concatenate8]]," ",Table1[[#This Row],[Concatenate9]]) -> Received a bill from the law firm of Larry, Moe & Curly for $5400 , payable upon receipt, for bond consulting fees, Check #5282.
A14: 2013-06-13 | B14: Purchase | C14: Purchases Journal | E14: 3250 | F14: 48 | G14: =E14*F14 -> 156000 | H14: Yes | I14: 0.02 | J14: =G14 -> 156000 | R14: Took advantage of a special deal to purchase | S14: =Table1[[#This Row],[Units]] -> 3250 | T14: DVD players on account from JVC for | U14: =Table1[[#This Row],[$ per Unit]] -> 48 | V14: per unit. | AA14: =CONCATENATE(Table1[[#This Row],[Concatenate1]]," ",Table1[[#This Row],[Concatenate2]]," ",Table1[[#This Row],[Concatenate3]]," $",Table1[[#This Row],[Concatenate4]]," ",Table1[[#This Row],[Concatenate5]]," ",Table1[[#This Row],[Concatenate6]]," ",Table1[[#This Row],[Concatenate7]]," ",Table1[[#This Row],[Concatenate8]]," ",Table1[[#This Row],[Concatenate9]]) -> Took advantage of a special deal to purchase 3250 DVD players on account from JVC for $48 per unit.
A15: 2013-06-13 | B15: Purchase | C15: Purchases Journal | E15: 850 | F15: 33 | G15: =E15*F15 -> 28050 | H15: Yes | I15: 0.02 | J15: =G15 -> 28050 | R15: Purchased | S15: =Table1[[#This Row],[Units]] -> 850 | T15: GPS units on credit from Magellan for | U15: =Table1[[#This Row],[$ per Unit]] -> 33 | V15: per unit. | AA15: =CONCATENATE(Table1[[#This Row],[Concatenate1]]," ",Table1[[#This Row],[Concatenate2]]," ",Table1[[#This Row],[Concatenate3]]," $",Table1[[#This Row],[Concatenate4]]," ",Table1[[#This Row],[Concatenate5]]," ",Table1[[#This Row],[Concatenate6]]," ",Table1[[#This Row],[Concatenate7]]," ",Table1[[#This Row],[Concatenate8]]," ",Table1[[#This Row],[Concatenate9]]) -> Purchased 850 GPS units on credit from Magellan for $33 per unit.
A16: 2013-06-15 | B16: Salaries | C16: Cash Payments Journal | G16: 14500 | H16: no | J16: 0 | K16: 0 | L16: 0 | R16: Check # 5284 was issued for payroll: | S16: =Table1[[#This Row],[Total $]] -> 14500 | T16: for salaried and | U16: =G17 -> 4750 | V16: for wages (wage expense) | AA16: =CONCATENATE(Table1[[#This Row],[Concatenate1]]," $",Table1[[#This Row],[Concatenate2]]," ",Table1[[#This Row],[Concatenate3]]," $",Table1[[#This Row],[Concatenate4]]," ",Table1[[#This Row],[Concatenate5]]," ",Table1[[#This Row],[Concatenate6]]," ",Table1[[#This Row],[Concatenate7]]," ",Table1[[#This Row],[Concatenate8]]," ",Table1[[#This Row],[Concatenate9]]) -> Check # 5284 was issued for payroll: $14500 for salaried and $4750 for wages (wage expense)
A17: 2013-06-15 | B17: Wages | C17: Cash Payments Journal | G17: 4750 | H17: no | J17: 0 | K17: 0 | L17: 0 | AA17: =CONCATENATE(Table1[[#This Row],[Concatenate1]]," ",Table1[[#This Row],[Concatenate2]]," ",Table1[[#This Row],[Concatenate3]]," ",Table1[[#This Row],[Concatenate4]]," ",Table1[[#This Row],[Concatenate5]]," ",Table1[[#This Row],[Concatenate6]]," ",Table1[[#This Row],[Concatenate7]]," ",Table1[[#This Row],[Concatenate8]]," ",Table1[[#This Row],[Concatenate9]]) -> 
A18: 2013-06-15 | B18: Sales | C18: Sales Journal | E18: 2000 | F18: 89 | G18: =E18*F18 -> 178000 | H18: Yes | I18: 0.02 | J18: =Table1[[#This Row],[Total $]] -> 178000 | R18: Sold | S18: =Table1[[#This Row],[Units]] -> 2000 | T18: DVD players on credit to Ford Motor Co. for | U18: =Table1[[#This Row],[$ per Unit]] -> 89 | V18: per unit, Invoice 5558. | AA18: =CONCATENATE(Table1[[#This Row],[Concatenate1]]," ",Table1[[#This Row],[Concatenate2]]," ",Table1[[#This Row],[Concatenate3]]," $",Table1[[#This Row],[Concatenate4]]," ",Table1[[#This Row],[Concatenate5]]," ",Table1[[#This Row],[Concatenate6]]," ",Table1[[#This Row],[Concatenate7]]," ",Table1[[#This Row],[Concatenate8]]," ",Table1[[#This Row],[Concatenate9]]) -> Sold 2000 DVD players on credit to Ford Motor Co. for $89 per unit, Invoice 5558.
A19: 2013-06-16 | B19: Purchase | C19: Purchases Journal | E19: 1800 | F19: 42 | G19: =Table1[[#This Row],[Units]]*Table1[[#This Row],[$ per Unit]] -> 75600 | H19: Yes | I19: 0.02 | J19: =Table1[[#This Row],[Total $]] -> 75600 | R19: Purchased | S19: =Table1[[#This Row],[Units]] -> 1800 | T19: docking stations on credit from Samsung for | U19: =Table1[[#This Row],[$ per Unit]] -> 42 | V19: per unit. | AA19: =CONCATENATE(Table1[[#This Row],[Concatenate1]]," ",Table1[[#This Row],[Concatenate2]]," ",Table1[[#This Row],[Concatenate3]]," $",Table1[[#This Row],[Concatenate4]]," ",Table1[[#This Row],[Concatenate5]]," ",Table1[[#This Row],[Concatenate6]]," ",Table1[[#This Row],[Concatenate7]]," ",Table1[[#This Row],[Concatenate8]]," ",Table1[[#This Row],[Concatenate9]]) -> Purchased 1800 docking stations on credit from Samsung for $42 per unit.
A20: 2013-06-18 | B20: Cash Receipts | C20: Cash Receipts Journal | G20: =Table1[[#This Row],[Amt of Balance]] -> 145750.5 | H20: Yes | I20: 0.02 | J20: =G4 -> 148725 | K20: =G4*I4 -> 2974.5 | L20: =Table1[[#This Row],[Balance Owing]]-Table1[[#This Row],[Amt of Discount]] -> 145750.5 | R20: Received payment in full from Toyota for the June 1st sale. | AA20: =CONCATENATE(Table1[[#This Row],[Concatenate1]]," ",Table1[[#This Row],[Concatenate2]]," ",Table1[[#This Row],[Concatenate3]]," ",Table1[[#This Row],[Concatenate4]]," ",Table1[[#This Row],[Concatenate5]]," ",Table1[[#This Row],[Concatenate6]]," ",Table1[[#This Row],[Concatenate7]]," ",Table1[[#This Row],[Concatenate8]]," ",Table1[[#This Row],[Concatenate9]]) -> Received payment in full from Toyota for the June 1st sale.
A21: 2013-06-22 | B21: Sale | C21: Sales Journal | E21: 1650 | F21: 64.5 | G21: =Table1[[#This Row],[Units]]*Table1[[#This Row],[$ per Unit]] -> 106425 | H21: Yes | I21: 0.02 | J21: =Table1[[#This Row],[Total $]] -> 106425 | R21: Sold | S21: =Table1[[#This Row],[Units]] -> 1650 | T21: docking stations on credit to Kia for | U21: =Table1[[#This Row],[$ per Unit]] -> 64.5 | V21: per unit, Invoice #5559. | AA21: =CONCATENATE(Table1[[#This Row],[Concatenate1]]," ",Table1[[#This Row],[Concatenate2]]," ",Table1[[#This Row],[Concatenate3]]," ",Table1[[#This Row],[Concatenate4]]," ",Table1[[#This Row],[Concatenate5]]," ",Table1[[#This Row],[Concatenate6]]," ",Table1[[#This Row],[Concatenate7]]," ",Table1[[#This Row],[Concatenate8]]," ",Table1[[#This Row],[Concatenate9]]) -> Sold 1650 docking stations on credit to Kia for 64.5 per unit, Invoice #5559.
A22: 2013-06-23 | B22: Cash Payment | C22: Cash Payments Journal | G22: 75000 | H22: no | J22: 162500 | K22: 0 | L22: =Table1[[#This Row],[Balance Owing]]-Table1[[#This Row],[Total $]] -> 87500 | R22: Paid | S22: =Table1[[#This Row],[Total $]] -> 75000 | T22: of the | U22: =Table1[[#This Row],[Balance Owing]] -> 162500 | V22: owed to JVC from May 25, Check #5285. | AA22: =CONCATENATE(Table1[[#This Row],[Concatenate1]]," $",Table1[[#This Row],[Concatenate2]]," ",Table1[[#This Row],[Concatenate3]]," $",Table1[[#This Row],[Concatenate4]]," ",Table1[[#This Row],[Concatenate5]]," ",Table1[[#This Row],[Concatenate6]]," ",Table1[[#This Row],[Concatenate7]]," ",Table1[[#This Row],[Concatenate8]]," ",Table1[[#This Row],[Concatenate9]]) -> Paid $75000 of the $162500 owed to JVC from May 25, Check #5285.
A23: 2013-06-23 | B23: Cash Receipt | C23: Cash Receipts Journal | G23: 175000 | H23: no | J23: 300000 | K23: 0 | L23: =Table1[[#This Row],[Balance Owing]]-Table1[[#This Row],[Total $]] -> 125000 | R23: Received payment from Ford Motor Co. for | S23: =Table1[[#This Row],[Total $]] -> 175000 | T23: of the | U23: =Table1[[#This Row],[Balance Owing]] -> 300000 | V23: owed from May 5. | AA23: =CONCATENATE(Table1[[#This Row],[Concatenate1]]," $",Table1[[#This Row],[Concatenate2]]," ",Table1[[#This Row],[Concatenate3]]," $",Table1[[#This Row],[Concatenate4]]," ",Table1[[#This Row],[Concatenate5]]," ",Table1[[#This Row],[Concatenate6]]," ",Table1[[#This Row],[Concatenate7]]," ",Table1[[#This Row],[Concatenate8]]," ",Table1[[#This Row],[Concatenate9]]) -> Received payment from Ford Motor Co. for $175000 of the $300000 owed from May 5.
A24: 2013-06-24 | B24: Cash Payment | C24: Cash Payments Journal | D24: Telecom. Expense | G24: 100 | H24: no | J24: 0 | K24: 0 | R24: Purchased a | S24: =Table1[[#This Row],[Total $]] -> 100 | T24: international phone card for one of the sales representative's upcoming European business trip, Check #5286. | AA24: =CONCATENATE(Table1[[#This Row],[Concatenate1]]," $",Table1[[#This Row],[Concatenate2]]," ",Table1[[#This Row],[Concatenate3]]," ",Table1[[#This Row],[Concatenate4]]," ",Table1[[#This Row],[Concatenate5]]," ",Table1[[#This Row],[Concatenate6]]," ",Table1[[#This Row],[Concatenate7]]," ",Table1[[#This Row],[Concatenate8]]," ",Table1[[#This Row],[Concatenate9]]) -> Purchased a $100 international phone card for one of the sales representative's upcoming European business trip, Check #5286.
A25: 2013-06-25 | B25: Cash Payment | C25: Cash Payments Journal | G25: =Table1[[#This Row],[Amt of Balance]] -> 152880 | H25: Yes | J25: =J14 -> 156000 | K25: =Table1[[#This Row],[Balance Owing]]*0.02 -> 3120 | L25: =Table1[[#This Row],[Balance Owing]]-Table1[[#This Row],[Amt of Discount]] -> 152880 | R25: Paid in full for the purchase from JVC on June 13, Check #5287 | AA25: =CONCATENATE(Table1[[#This Row],[Concatenate1]]," ",Table1[[#This Row],[Concatenate2]]," ",Table1[[#This Row],[Concatenate3]]," ",Table1[[#This Row],[Concatenate4]]," ",Table1[[#This Row],[Concatenate5]]," ",Table1[[#This Row],[Concatenate6]]," ",Table1[[#This Row],[Concatenate7]]," ",Table1[[#This Row],[Concatenate8]]," ",Table1[[#This Row],[Concatenate9]]) -> Paid in full for the purchase from JVC on June 13, Check #5287
A26: 2013-06-26 | B26: Cash Payment | C26: Cash Payments Journal | D26: Merchandise Inventory | E26: 1250 | F26: 41 | G26: =Table1[[#This Row],[Units]]*Table1[[#This Row],[$ per Unit]] -> 51250 | H26: Yes | I26: 0.02 | J26: =Table1[[#This Row],[Total $]] -> 51250 | R26: Purchased | S26: =Table1[[#This Row],[Units]] -> 1250 | T26: docking station from Samsung for | U26: =Table1[[#This Row],[$ per Unit]] -> 41 | V26: per unit paying in cash, Check #5288 | AA26: =CONCATENATE(Table1[[#This Row],[Concatenate1]]," ",Table1[[#This Row],[Concatenate2]]," ",Table1[[#This Row],[Concatenate3]]," $",Table1[[#This Row],[Concatenate4]]," ",Table1[[#This Row],[Concatenate5]]," ",Table1[[#This Row],[Concatenate6]]," ",Table1[[#This Row],[Concatenate7]]," ",Table1[[#This Row],[Concatenate8]]," ",Table1[[#This Row],[Concatenate9]]) -> Purchased 1250 docking station from Samsung for $41 per unit paying in cash, Check #5288
A27: 2013-06-27 | B27: Sale | C27: Sales Journal | E27: 1500 | F27: 61 | G27: =Table1[[#This Row],[Units]]*Table1[[#This Row],[$ per Unit]] -> 91500 | H27: Yes | I27: 0.02 | J27: =Table1[[#This Row],[Total $]] -> 91500 | R27: Sold | S27: =Table1[[#This Row],[Units]] -> 1500 | T27: docking stations on credit to Honda for | U27: =Table1[[#This Row],[$ per Unit]] -> 61 | V27: per unit, Invoice 5560. | AA27: =CONCATENATE(Table1[[#This Row],[Concatenate1]]," ",Table1[[#This Row],[Concatenate2]]," ",Table1[[#This Row],[Concatenate3]]," $",Table1[[#This Row],[Concatenate4]]," ",Table1[[#This Row],[Concatenate5]]," ",Table1[[#This Row],[Concatenate6]]," ",Table1[[#This Row],[Concatenate7]]," ",Table1[[#This Row],[Concatenate8]]," ",Table1[[#This Row],[Concatenate9]]) -> Sold 1500 docking stations on credit to Honda for $61 per unit, Invoice 5560.
A28: 2013-06-27 | B28: Cash Payment | C28: Cash Payments Journal | D28: Marketing Expense | G28: 75000 | J28: 0 | R28: Hired and paid a consultant | S28: =Table1[[#This Row],[Total $]] -> 75000 | T28: to devise a marketing plan. AC Speed's management felt this was necessary to develop brand awareness. Check #5289. | AA28: =CONCATENATE(Table1[[#This Row],[Concatenate1]]," $",Table1[[#This Row],[Concatenate2]]," ",Table1[[#This Row],[Concatenate3]]," ",Table1[[#This Row],[Concatenate4]]," ",Table1[[#This Row],[Concatenate5]]," ",Table1[[#This Row],[Concatenate6]]," ",Table1[[#This Row],[Concatenate7]]," ",Table1[[#This Row],[Concatenate8]]," ",Table1[[#This Row],[Concatenate9]]) -> Hired and paid a consultant $75000 to devise a marketing plan. AC Speed's management felt this was necessary to develop brand awareness. Check #5289.
A29: 2013-06-28 | B29: Cash Payment | C29: Cash Payments Journal | P29: 8000 | Q29: 10000 | R29: AC Speed is behind in its mortgage payments to Bank of America. Paid a total of | S29: =Table1[[#This Row],[Balance Paid]] -> 10000 | T29: ( | U29: =Table1[[#This Row],[Balance Paid]]-Table1[[#This Row],[Interest Paid]] -> 2000 | V29: principal and | W29: =Table1[[#This Row],[Interest Paid]] -> 8000 | X29: interest), Check #5290. | AA29: =CONCATENATE(Table1[[#This Row],[Concatenate1]]," $",Table1[[#This Row],[Concatenate2]]," ",Table1[[#This Row],[Concatenate3]]," $",Table1[[#This Row],[Concatenate4]]," ",Table1[[#This Row],[Concatenate5]]," $",Table1[[#This Row],[Concatenate6]]," ",Table1[[#This Row],[Concatenate7]]," ",Table1[[#This Row],[Concatenate8]]," ",Table1[[#This Row],[Concatenate9]]) -> AC Speed is behind in its mortgage payments to Bank of America. Paid a total of $10000 ( $2000 principal and $8000 interest), Check #5290.
A30: 2013-06-29 | B30: Cash Receipt | C30: Cash Receipts Journal | G30: =Table1[[#This Row],[Amt of Balance]] -> 89670 | H30: Yes | I30: 0.02 | J30: =G27 -> 91500 | K30: =Table1[[#This Row],[Balance Owing]]*Table1[[#This Row],[Discount %]] -> 1830 | L30: =Table1[[#This Row],[Balance Owing]]-Table1[[#This Row],[Amt of Discount]] -> 89670 | R30: Received payment in full from Honda for the June 27th transaction. | AA30: =CONCATENATE(Table1[[#This Row],[Concatenate1]]," ",Table1[[#This Row],[Concatenate2]]," ",Table1[[#This Row],[Concatenate3]]," ",Table1[[#This Row],[Concatenate4]]," ",Table1[[#This Row],[Concatenate5]]," ",Table1[[#This Row],[Concatenate6]]," ",Table1[[#This Row],[Concatenate7]]," ",Table1[[#This Row],[Concatenate8]]," ",Table1[[#This Row],[Concatenate9]]) -> Received payment in full from Honda for the June 27th transaction.
A31: 2013-06-29 | B31: Cash Payment | C31: Cash Payments Journal | G31: 30000 | H31: No | J31: 30000 | K31: 0 | L31: =Table1[[#This Row],[Balance Owing]]-Table1[[#This Row],[Total $]] -> 0 | R31: Paid in full for the purchase from Magellan on May 31st, Check #5291. | AA31: =CONCATENATE(Table1[[#This Row],[Concatenate1]]," ",Table1[[#This Row],[Concatenate2]]," ",Table1[[#This Row],[Concatenate3]]," ",Table1[[#This Row],[Concatenate4]]," ",Table1[[#This Row],[Concatenate5]]," ",Table1[[#This Row],[Concatenate6]]," ",Table1[[#This Row],[Concatenate7]]," ",Table1[[#This Row],[Concatenate8]]," ",Table1[[#This Row],[Concatenate9]]) -> Paid in full for the purchase from Magellan on May 31st, Check #5291.
A32: 2013-06-29 | B32: Salaries | C32: Cash Payments Journal | G32: 14500 | H32: no | J32: 0 | K32: 0 | L32: 0 | R32: Check # 5292 was issued for payroll: | S32: =Table1[[#This Row],[Total $]] -> 14500 | T32: for salaried and | U32: =G33 -> 4750 | V32: for wages (wage expense) | AA32: =CONCATENATE(Table1[[#This Row],[Concatenate1]]," $",Table1[[#This Row],[Concatenate2]]," ",Table1[[#This Row],[Concatenate3]]," $",Table1[[#This Row],[Concatenate4]]," ",Table1[[#This Row],[Concatenate5]]," ",Table1[[#This Row],[Concatenate6]]," ",Table1[[#This Row],[Concatenate7]]," ",Table1[[#This Row],[Concatenate8]]," ",Table1[[#This Row],[Concatenate9]]) -> Check # 5292 was issued for payroll: $14500 for salaried and $4750 for wages (wage expense)
A33: 2013-06-29 | B33: Wages | C33: Cash Payments Journal | G33: 4750 | H33: no | J33: 0 | K33: 0 | L33: 0 | AA33: =CONCATENATE(Table1[[#This Row],[Concatenate1]]," ",Table1[[#This Row],[Concatenate2]]," ",Table1[[#This Row],[Concatenate3]]," ",Table1[[#This Row],[Concatenate4]]," ",Table1[[#This Row],[Concatenate5]]," ",Table1[[#This Row],[Concatenate6]]," ",Table1[[#This Row],[Concatenate7]]," ",Table1[[#This Row],[Concatenate8]]," ",Table1[[#This Row],[Concatenate9]]) -> 
A37: Account | D37: May 31 Balance | G37: Account | K37: 2012-12-31 | L37: 2011-12-31 | M37: 2010-12-31 | N37: 2009-12-31
A38: Sales | D38: 725000 | G38: Common Stock, $1 Par, 100,000 Authorized; 60,000 shares Issued/Outstanding | K38: 65000
A39: Cost of Goods Sold (Percentage of Sales) | D39: 0.88 | G39: Paid In Capital - Excess of Par | K39: 1545000
A40: Wage Expense (hourly workers) | D40: 10000 | G40: Retained Earnings | K40: 1166744 | L40: 1065744 | M40: 956030 | N40: 1238479
A41: Salaries Expense (exempt staff) | D41: 30000
A42: Marketing Expense | D42: 24000
A43: Travel and Entertainment Expense | D43: 2300
A44: Office Maintenance & Repair Expense | D44: 500
A45: Legal Expenses | D45: 16550
A46: Insurance Expense | D46: 2000
A47: Utilities Expense | D47: 1000
A48: Office Supplies Expense | D48: 290
A49: Telecommunications Expense | D49: 55
A50: Depreciation Expense - Equipment & Furn - Warehouse | D50: 165
A51: Depreciation Expense - Equipment & Furn - Office | D51: 140

Sheet Data - ADJ JE (hidden)
F1: Required Information | I1: Adjustments | L1: Adjustment Calculations | O1: Concatenation Process | T1: Concatenated Phrase
A2: June Month-end Adjustments: | C2: Adj Transaction Description | D2: Related transaction | I2: # of months | J2: Rent per month | L2: Total Rent
B3: ( A ) | C3: AC Speed has earned one month of the prepaid rent received from their tenant at the beginning of June. | D3: June 4 | E3: =T3 -> Rented part of the warehouse to a new tenant and received $5400 for three months rent starting in June | I3: 3 | J3: 1800 | L3: =I3*J3 -> 5400 | O3: Rented part of the warehouse to a new tenant and received | P3: =L3 -> 5400 | Q3: for three months rent starting in June | T3: =CONCATENATE(O3," $",P3," ",Q3) -> Rented part of the warehouse to a new tenant and received $5400 for three months rent starting in June
C4: Above transaction wording doesn't need changing
F5: Previous balance | I5: Physical Count | L5: Debit | M5: Credit
B6: ( B ) | C6: =T6 -> The Company took a physical count of Office Supplies on June 30 and found the following to be on hand: Office Supplies - $2500 | F6: ='General Ledger'!F57 -> 0 | H6: Must be a write down | I6: 2500 | L6: =IF(I6>F6,I6-F6,0) -> 2500 | M6: =IF(I6<F6,F6-I6,0) -> 0 | O6: The Company took a physical count of Office Supplies on June 30 and found the following to be on hand: Office Supplies - | P6: =I6 -> 2500 | T6: =CONCATENATE(O6," $",P6) -> The Company took a physical count of Office Supplies on June 30 and found the following to be on hand: Office Supplies - $2500
F8: Accounts receivable balance | G8: Allowance credit balance | I8: Allowance % | L8: Debit | M8: Credit
B9: ( C ) | C9: =T9 -> AC Speed estimates bad debt expense on a monthly basis rather than waiting until year-end. The company uses the allowance method. Based on recent industry estimates, AC Speed estimates that the allowance account should be 2% of accounts receivable. | F9: ='General Ledger'!F21 -> 0 | G9: ='General Ledger'!G31 -> 0 | I9: 0.02 | L9: =IF(F9*I9>G9,0,-(F9*I9-G9)) -> 0 | M9: =IF(F9*I9>G9,F9*I9-G9,0) -> 0 | O9: AC Speed estimates bad debt expense on a monthly basis rather than waiting until year-end. The company uses the allowance method. Based on recent industry estimates, AC Speed estimates that the allowance account should be | P9: 2% | Q9: of accounts receivable. | T9: =CONCATENATE(O9," ",P9," ",Q9) -> AC Speed estimates bad debt expense on a monthly basis rather than waiting until year-end. The company uses the allowance method. Based on recent industry estimates, AC Speed estimates that the allowance account should be 2% of accounts receivable.
F10: Month End Inv Balance | I10: Inventory Count | L10: Debit | M10: Credit
B11: ( D ) | C11: =T11 -> The Company took a physical inventory count on June 30 and found the following inventory on hand: Merchandise Inventory - $120000 | F11: ='General Ledger'!F49 -> 0 | I11: 120000 | L11: =F11-I11 -> -120000 | O11: The Company took a physical inventory count on June 30 and found the following inventory on hand: Merchandise Inventory - | P11: =I11 -> 120000 | T11: =CONCATENATE(O11," $",P11) -> The Company took a physical inventory count on June 30 and found the following inventory on hand: Merchandise Inventory - $120000
I12: Prepaid Insurance Balance | J12: Months | M12: Credit
B13: ( E ) | C13: =T13 -> The Balance in the prepaid insurance account at the beginning of June represents 4 months of coverage. Record the amount of insurance for June. | I13: 14000 | J13: 4 | M13: =I13/J13 -> 3500 | O13: The Balance in the prepaid insurance account at the beginning of June represents | P13: =J13 -> 4 | Q13: months of coverage. Record the amount of insurance for June. | T13: =CONCATENATE(O13," ",P13," ",Q13) -> The Balance in the prepaid insurance account at the beginning of June represents 4 months of coverage. Record the amount of insurance for June.
B15: ( F ) | C15: Depreciation on the company's fixed assets for the month of June is as follows: | G15: Life | I15: Historical Price | J15: Salvage Value | L15: Monthly Depr.
C16: =T16 -> 1. The furniture and equipment for the warehouse was purchased a few years ago for 10000. These assets have a 4-year life, an expected salvage value of 1000 and are depreciated using the straight-line method. | F16: Warehouse | G16: 4 | I16: 10000 | J16: 1000 | L16: =(I16-J16)/(G16*12) -> 187.5 | O16: 1. The furniture and equipment for the warehouse was purchased a few years ago for | P16: =I16 -> 10000 | Q16: . These assets have a 4-year life, an expected salvage value of | R16: =J16 -> 1000 | S16: and are depreciated using the straight-line method. | T16: =CONCATENATE(O16," ",P16,Q16," ",R16," ",S16) -> 1. The furniture and equipment for the warehouse was purchased a few years ago for 10000. These assets have a 4-year life, an expected salvage value of 1000 and are depreciated using the straight-line method.
C17: =T17 -> 2. The furniture and equipment for the office was purchased last year for 8500. these assets have a 7 year life, an expected salvage value of 1500 and are depreicated using stright-line method. | F17: Office | G17: 7 | I17: 8500 | J17: 1500 | L17: =(I17-J17)/(G17*12) -> 83.33333333 | O17: 2. The furniture and equipment for the office was purchased last year for | P17: =I17 -> 8500 | Q17: . these assets have a 7 year life, an expected salvage value of | R17: =J17 -> 1500 | S17: and are depreicated using stright-line method. | T17: =CONCATENATE(O17," ",P17,Q17," ",R17," ",S17) -> 2. The furniture and equipment for the office was purchased last year for 8500. these assets have a 7 year life, an expected salvage value of 1500 and are depreicated using stright-line method.

Sheet Change Log (hidden)
A1: Date | B1: Transactional Data | C1: Change
A2: =Transactions!A6 -> June 1 | B2: =Transactions!B6 -> Signed a 3 year 7.1% , $210000 note payable with First Bank. | C2: Changed value to $200,000
A3: =Transactions!A8 -> June 1 | B3: =Transactions!B8 -> Purchased 3100 GPS units on credit from Navistar for $35.5 per unit. | C3: From $35 to $36 per unit
A4: June 2 | B4: Sold 2000 DVD players on account to Toyota for $76 per unit, Invoice #5555 | C4: From $75 to $76
A5: June 2 | B5: Sold 3500 GPS units on account to Kia for $53 per unit, Invoice #5566. | C5: From $52 to $53
A6: June 30 | B6: Issued bonds payable at face value for $450,000 | C6: From $350K to $450K
A7: ADJ C | B7: Bad Debt | C7: Changed from 2.5% to 2.0%
